Workbook

Sheet Report
C3: BASTROPIC | G3: Daily Natural Gas Report | K3: Ctrl Z = Menu
C5: Name of Operator | G5: Transcorp 4
C6: Date | G6: 05/08/19 06/08/19
C7: Type of Chart | G7: S/R 0-1500# Diff 0-200"w/c
C8: Chart Number | G8: DXD 8"x6'
C9: Machine Number | G9: ST 21B
C10: Location | G10: UGHE G/P
C12: Static Pres. | H12: Diff Pres
B13: Hrs. | C13: 15min | D13: 30min | E13: 45min | F13: 60min | G13: Average | H13: 15min | I13: 30min | J13: 45min | K13: 60min | L13: Average | N13: TEMP
B14: 00:00 | C14: 19.47368421 | D14: 19.29824561 | E14: 19.12280702 | F14: 19.12280702 | G14: 19.25438596 | H14: 6.766779562 | I14: 6.779742789 | J14: 6.779742789 | K14: 6.779742789 | L14: 6.776501982 | N14: 46.03070175
B15: 01:00 | C15: 19.12280702 | D15: 19.12280702 | E15: 19.12280702 | F15: 19.12280702 | G15: 19.12280702 | H15: 6.779742789 | I15: 6.779742789 | J15: 6.79911969 | K15: 6.805570474 | L15: 6.791043935 | N15: 44.8245614
B16: 02:00 | C16: 19.29824561 | D16: 19.56140351 | E16: 19.73684211 | F16: 19.8245614 | G16: 19.60526316 | H16: 6.805570474 | I16: 6.805570474 | J16: 6.805570474 | K16: 6.79911969 | L16: 6.803957778 | N16: 44.23245614
B17: 03:00 | C17: 19.8245614 | D17: 19.8245614 | E17: 20.0877193 | F17: 20.1754386 | G17: 19.97807018 | H17: 6.786205848 | I17: 6.779742789 | J17: 6.760304157 | K17: 6.734302843 | L17: 6.765138909 | N17: 44.14473684
B18: 04:00 | C18: 20.1754386 | D18: 20.35087719 | E18: 20.78947368 | F18: 20.87719298 | G18: 20.54824561 | H18: 6.727789971 | I18: 6.727789971 | J18: 6.727789971 | K18: 6.727789971 | L18: 6.727789971 | N18: 43.44298246
B19: 05:00 | C19: 20.87719298 | D19: 20.78947368 | E19: 20.70175439 | F19: 20.70175439 | G19: 20.76754386 | H19: 6.740815714 | I19: 6.740815714 | J19: 6.747316025 | K19: 6.747316025 | L19: 6.744065869 | N19: 41.82017544
B20: 06:00 | C20: 20.70175439 | D20: 20.52631579 | E20: 20.52631579 | F20: 20.52631579 | G20: 20.57017544 | H20: 6.727789971 | I20: 6.727789971 | J20: 6.740815714 | K20: 6.740815714 | L20: 6.734302843 | N20: 37.80701754
B21: 07:00 | C21: 20.0877193 | D21: 19.64912281 | E21: 19.64912281 | F21: 19.64912281 | G21: 19.75877193 | H21: 6.740815714 | I21: 6.721264465 | J21: 6.688560541 | K21: 6.740815714 | L21: 6.722864109 | N21: 37.71929825
B22: 08:00 | C22: 19.64912281 | D22: 19.64912281 | E22: 19.56140351 | F22: 19.47368421 | G22: 19.58333333 | H22: 6.688560541 | I22: 6.688560541 | J22: 6.688560541 | K22: 6.688560541 | L22: 6.688560541 | N22: 38.17982456
B23: 09:00 | C23: 19.47368421 | D23: 19.47368421 | E23: 19.47368421 | F23: 19.47368421 | G23: 19.47368421 | H23: 6.688560541 | I23: 6.70164975 | J23: 6.727789971 | K23: 6.721264465 | L23: 6.709816182 | N23: 38.75
B24: 10:00 | C24: 19.47368421 | D24: 19.47368421 | E24: 19.47368421 | F24: 19.47368421 | G24: 19.47368421 | H24: 6.71473896 | I24: 6.71473896 | J24: 6.71473896 | K24: 6.71473896 | L24: 6.71473896 | N24: 42.19298246
B25: 11:00 | C25: 19.47368421 | D25: 19.47368421 | E25: 19.47368421 | F25: 19.47368421 | G25: 19.47368421 | H25: 6.71473896 | I25: 6.71473896 | J25: 6.71473896 | K25: 6.721264465 | L25: 6.716370336 | N25: 42.93859649
B26: 12:00 | C26: 19.47368421 | D26: 19.47368421 | E26: 19.47368421 | F26: 19.47368421 | G26: 19.47368421 | H26: 6.721264465 | I26: 6.688560541 | J26: 6.688560541 | K26: 6.688560541 | L26: 6.696736522 | N26: 43.85964912
B27: 13:00 | C27: 19.47368421 | D27: 19.47368421 | E27: 19.56140351 | F27: 19.64912281 | G27: 19.53947368 | H27: 6.688560541 | I27: 6.688560541 | J27: 6.688560541 | K27: 6.688560541 | L27: 6.688560541 | N27: 44.03508772
B28: 14:00 | C28: 19.8245614 | D28: 19.8245614 | E28: 19.8245614 | F28: 19.8245614 | G28: 19.8245614 | H28: 6.688560541 | I28: 6.688560541 | J28: 6.701662533 | K28: 6.721264465 | L28: 6.70001202 | N28: 44.12280702
B29: 15:00 | C29: 19.8245614 | D29: 19.8245614 | E29: 19.8245614 | F29: 19.8245614 | G29: 19.8245614 | H29: 6.727789971 | I29: 6.727789971 | J29: 6.727789971 | K29: 6.727789971 | L29: 6.727789971 | N29: 44.89035088
B30: 16:00 | C30: 19.8245614 | D30: 19.8245614 | E30: 19.8245614 | F30: 19.8245614 | G30: 19.8245614 | H30: 6.727789971 | I30: 6.727789971 | J30: 6.727789971 | K30: 6.727789971 | L30: 6.727789971 | N30: 45.26315789
B31: 17:00 | C31: 19.8245614 | D31: 19.64912281 | E31: 19.64912281 | F31: 19.64912281 | G31: 19.69298246 | H31: 6.727789971 | I31: 6.727789971 | J31: 6.727789971 | K31: 6.734302843 | L31: 6.729418189 | N31: 45.43859649
B32: 18:00 | C32: 19.64912281 | D32: 19.64912281 | E32: 19.64912281 | F32: 19.64912281 | G32: 19.64912281 | H32: 6.740815714 | I32: 6.740815714 | J32: 6.740815714 | K32: 6.740815714 | L32: 6.740815714 | N32: 45.48245614
B33: 19:00 | C33: 19.64912281 | D33: 19.64912281 | E33: 19.64912281 | F33: 19.64912281 | G33: 19.64912281 | H33: 6.740815714 | I33: 6.753816335 | J33: 6.766791979 | K33: 6.779742789 | L33: 6.760291704 | N33: 45.94298246
B34: 20:00 | C34: 19.64912281 | D34: 19.8245614 | E34: 19.9122807 | F34: 20 | G34: 19.84649123 | H34: 6.786205848 | I34: 6.792668907 | J34: 6.792668907 | K34: 6.792668907 | L34: 6.791053142 | N34: 46.14035088
B35: 21:00 | C35: 20.1754386 | D35: 20.35087719 | E35: 20.43859649 | F35: 20.52631579 | G35: 20.37280702 | H35: 6.792668907 | I35: 6.792668907 | J35: 6.792668907 | K35: 6.79911969 | L35: 6.794281603 | N35: 46.25
B36: 22:00 | C36: 20.52631579 | D36: 20.52631579 | E36: 20.52631579 | F36: 20.52631579 | G36: 20.52631579 | H36: 6.805570474 | I36: 6.805570474 | J36: 6.805570474 | K36: 6.805570474 | L36: 6.805570474 | N36: 46.71052632
B37: 23:00 | C37: 20.52631579 | D37: 20.52631579 | E37: 20.52631579 | F37: 20.52631579 | G37: 20.52631579 | H37: 6.792668907 | I37: 6.792668907 | J37: 6.792668907 | K37: 6.792668907 | L37: 6.792668907 | N37: 47.12719298
D39: Max Static | F39: =MAX(C14:F37) -> 20.87719298 | I39: Max Diff | K39: =MAX(H14:K37) -> 6.805570474 | M39: Max Temp | N39: =MAX(N14:N37) -> 47.12719298
D40: Min Static | F40: =MIN(C14:F37) -> 19.12280702 | I40: Min Diff | K40: =MIN(H14:K37) -> 6.688560541 | M40: Min Temp | N40: =MIN(N14:N37) -> 37.71929825
D41: Avg Static | F41: =AVERAGE(C14:F37) -> 19.84831871 | I41: Avg Diff | K41: =AVERAGE(H14:K37) -> 6.74375584 | M41: Avg Temp | N41: =AVERAGE(N14:N37) -> 43.63943713
F44: 43.63943713 | J44: Sales | M44: 42.91990501
F45: 19.84831871
F46: 6.74375584

Sheet Chart Types
A1: Barton
A2: Chart No. | B2: Time | C2: SqRt DP | D2: Lin Pres | E2: Lin Temp | F2: Other | G2: Dia | H2: Can Read?
A3: BUKC2051 | B3: 24 Hour | D3: 15000 | G3: 11.25 | H3: Can Add
A4: BUKC2054 | B4: 24 Hour | D4: 5000 | G4: 11.25 | H4: Yes
A5: BUKC2084 | B5: 24 Hour | D5: 30000 | G5: 11.25 | H5: Can Add
A6: BUKC2632 | B6: 24 Hour | D6: 10000 | G6: 11.125 | H6: Yes
A7: L570030 | B7: 2 or 8 | D7: 20 | H7: Maybe
A8: L10S | B8: 7 day | D8: 10 | G8: 11.125 | H8: Can Add
A9: M150H | B9: 24 Hour | C9: 100 | D9: 150 | G9: 11.25 | H9: Yes
A10: MP1004H | B10: 4 | D10: 100 | G10: 11.125 | H10: Can Add
A11: MP1500150F | B11: 24 Hour | D11: 1500 | E11: 150 | H11: Yes
A12: MP500150F | B12: 24 Hour | D12: 500 | E12: 150 | G12: 11.125 | H12: Yes
A13: MP700 | B13: 24 Hour | D13: 700 | G13: 11 | H13: Can Add
A14: MP700S | B14: 7 Day | D14: 700 | G14: 11 | H14: Can Add
A15: MP100 | B15: 24 Hour | D15: 100 | G15: 11 | H15: Yes
A16: MP10000 | B16: 24 Hour | D16: 10000 | G16: 11.125 | H16: Yes
A17: P1500W200 | B17: 24 Hour | C17: 200 | D17: 1500 | H17: Yes
A18: MP5000S | B18: 7Day | D18: 5000 | G18: 11.125 | H18: Can Add
A19: BUNKC2008 | B19: 24 Hour | D19: 100 | G19: 11.25 | H19: Yes
A20: L10 | B20: 24 Hour | C20: 10 | G20: 11.125 | H20: Yes
A21: BUCK2012 | B21: 24 Hour | C21: 10 | D21: 100 | G21: 11.25 | H21: Yes
A22: 20F1000T5P | B22: 24 Hour | D22: 5 | E22: 300-1000 | F22: 20 | G22: 11.125 | H22: Can add
A23: 175 | B23: 24 Hour | D23: 175 | H23: Can Add
A25: American Meter
A26: L1010 | B26: 24 Hour | C26: 10 | D26: 10 | G26: 11.125 | H26: Yes
A27: L101000 | B27: 24 Hour | C27: 10 | D27: 1000 | G27: 11.125 | H27: Yes
A28: L10200 | B28: 24 Hour | C28: 10 | D28: 200 | G28: 11.125 | H28: Yes
A29: M100H | B29: 24 Hour | D29: 100 | E29: 100 | G29: 11.125 | H29: Yes
A30: M1500H200F | B30: 24 Hour | D30: 100 | E30: 200 | F30: 1500 | G30: 11.125 | H30: Yes
A31: L10100 | B31: 24 Hour | C31: 10 | D31: 100 | G31: 11.125 | H31: Yes
A32: L101000S | B32: 7Day | C32: 10 | D32: 1000 | G32: 11.125 | H32: Can Add
A33: M100SH | B33: 7Day | D33: 100 | E33: 100 | G33: 11.125 | H33: Can Add
A34: M1000H | B34: 24 Hour | D34: 100 | E34: 1000 | G34: 11.125 | H34: Yes
A35: M400 | B35: 24 Hour | D35: 50 | E35: 360 | G35: 11.125 | H35: Can Add
A36: MP100 | B36: 24 Hour | D36: 100 | G36: 11.125 | H36: Yes
A37: MP150001H | B37: 1 | D37: 15000 | G37: 11.125 | H37: Can Add
A38: MP2500 | B38: 24 Hour | D38: 2500 | G38: 11.125 | H38: Yes
A39: MP500012H | B39: 12 | D39: 5000 | G39: 11.125 | H39: Can Add
A40: MP6000 | B40: 24 Hour | D40: 6000 | G40: 11.125 | H40: Can Add
A41: L10 | B41: 24 Hour | C41: 10 | G41: 11.125 | H41: Yes
A42: L10S | B42: 7Day | C42: 10 | G42: 11.125 | H42: Can Add
A43: MP2000012H | B43: 12 | D43: 20000 | G43: 11.125 | H43: Can Add
A44: MP15000 | B44: 24 Hour | D44: 15000 | G44: 11.125 | H44: Can Add
A45: MP500S | B45: 7 | D45: 500 | G45: 11.125 | H45: Can Add
A46: MP400100C | B46: 24 Hour | D46: 100 | E46: 400 | G46: 11.125 | H46: Yes
A47: MP1000100C | B47: 24 Hour | D47: 100 | E47: 1000 | G47: 11.125 | H47: Yes
A48: MP2000100C | B48: 24 Hour | D48: 100 | E48: 2000 | G48: 11.125 | H48: Yes
A49: MP5000100C | B49: 24 Hour | D49: 100 | E49: 5000 | G49: 11.125 | H49: Yes
A50: MP10000100C | B50: 24 Hour | D50: 100 | E50: 10000 | G50: 11.125 | H50: Yes
A51: M500H | B51: 24 Hour | D51: 100 | E51: 500 | G51: 11.125 | H51: Yes
A52: MP5000S | B52: 7Day | D52: 5000 | G52: 11.125 | H52: Can Add
A53: L102000 | B53: 24 Hour | C53: 10 | D53: 2000 | G53: 11.125 | H53: Yes
A54: MP300001HR | B54: 1 | D54: 30000 | G54: 11.125 | H54: Can Add
A55: M1500H | B55: 24 Hour | D55: 100 | E55: 500 | G55: 11.125 | H55: Yess
A56: L10100S | B56: 7Day | C56: 10 | D56: 100 | G56: 11.125 | H56: Can Add
A57: MP250S | B57: 7Day | D57: 250 | G57: 11.125 | H57: Can Add
A58: MT200FS | B58: 7Day | D58: 200 | G58: 11.125 | H58: Can Add
A59: MP500100F | B59: 24 Hour | D59: 100 | E59: 500 | G59: 11.125 | H59: Yes
A60: MP3000100F | B60: 24 Hour | D60: 100 | E60: 3000 | G60: 11.125 | H60: Yes
A61: M200H8D | B61: 8Day | D61: 100 | E61: 200 | G61: 11.125 | H61: Can Add
A62: M200SH150F | B62: 7Day | D62: 100 | E62: 150 | F62: 200 | G62: 11.125 | H62: Can Add
A63: M200S150F | B63: 7Day | D63: 50 | E63: 200 | F63: 150 | G63: 11.125 | H63: Can Add
A64: MP200002H | B64: 2 | D64: 20000 | G64: 11.125 | H64: Can Add
A65: MP10000 | B65: 24 Hour | D65: 10000 | G65: 11.125 | H65: Yes
A66: MP200001000 | B66: 24 Hour | D66: 1000 | E66: 20000 | G66: 11.125 | H66: Yes
A67: M200H200F | B67: 24 Hour | D67: 100 | E67: 200 | F67: 200 | G67: 11.125 | H67: Yes
A68: M500H200F | B68: 24 Hour | D68: 10 | E68: 200 | F68: 500 | G68: 11.125 | H68: Yes
A69: M1000H200F | B69: 24 Hour | D69: 100 | E69: 1000 | F69: 200 | G69: 11.125 | H69: Yes
A70: M2000H200F | B70: 24 Hour | D70: 100 | E70: 2000 | F70: 200 | G70: 11.125 | H70: Yes
A71: MP100150 | B71: 24 Hour | D71: 100 | E71: 150 | G71: 11.125 | H71: Yes
A72: GC71223 | B72: 24 Hour | D72: 1000 | E72: -20 to -130 | G72: 11.125 | H72: Can Add
A73: MP1000 | B73: 24 Hour | D73: 1000 | G73: 11.125 | H73: Yes
A74: M1500SH | B74: 7Day | D74: 100 | E74: 1500 | G74: 11.125 | H74: Can Add
A75: MP50001HR | B75: 1 | D75: 5000 | G75: 11.125 | H75: Can Add
A76: MP30000 | B76: 24 Hour | D76: 30000 | G76: 11.125 | H76: Can Add
A77: MP100001H | B77: 1 | D77: 10000 | G77: 11.125 | H77: Can Add
A78: MP150004H | B78: 4 | D78: 15000 | G78: 11.125 | H78: Can Add
A79: MP50004H | B79: 4 | D79: 5000 | G79: 11.125 | H79: Can Add
A80: M3000150 | B80: 24 Hour | D80: 150 | E80: 3000 | G80: 11.125 | H80: Yes
A81: MP1000S | B81: 7Day | D81: 1000 | G81: 11.125 | H81: Can Add
A82: MP500 | B82: 24 Hour | D82: 500 | G82: 11.125 | H82: Yes
A83: M100H100F | B83: 24 Hour | D83: 100 | E83: 100 | F83: 100 | G83: 11.125 | H83: Yes
A84: L100 | B84: 24 Hour | C84: 100 | G84: 11.125 | H84: Yes
A85: MP5000150F | B85: 24 Hour | D85: 150 | E85: 5000 | G85: 11.125 | H85: Yes
A86: M10000H150F | B86: 24 Hour | D86: 100 | E86: 10000 | F86: 150 | G86: 11.125 | H86: Yes
A87: MP3000 | B87: 24 Hour | D87: 3000 | G87: 11.125 | H87: Yes
A88: MP1000096MIN | B88: 96 Min | D88: 10000 | G88: 11.125 | H88: Cam Add
A89: MP10031D | B89: 31Day | D89: 100 | G89: 11.125 | H89: Cam Add
A90: P1000096MIN | B90: 96Min | D90: 10000 | G90: 8 | H90: Cam Add
A91: M3000H | B91: 24 Hour | D91: 100 | E91: 3000 | G91: 11.125 | H91: Yes
A92: P150001HR | B92: 1 | D92: 15000 | G92: 8 | H92: Maybe
A93: P150001HR60DIV | B93: 1 | D93: 15000 | G93: 8 | H93: Maybe
A94: M250H | B94: 24 Hour | D94: 100 | E94: 250 | G94: 11.125 | H94: Yes
A95: M100H150F | B95: 24 Hour | D95: 100 | E95: 100 | F95: 150 | G95: 11.125 | H95: Yes
A96: M100S | B96: 7Day | D96: 50 | E96: 100 | G96: 11.125 | H96: Can Add
A97: M1500400 | B97: 24 Hour | D97: 400 | E97: 1500 | G97: 11.125 | H97: Yes
A98: M5000150F | B98: 24 Hour | D98: 50 | E98: 150 | F98: 5000 | G98: 11.125 | H98: Yes
A99: MP1000150F | B99: 24 Hour | D99: 150 | E99: 1000 | G99: 11.125 | H99: Yes
A100: MP1500 | B100: 24 Hour | D100: 1500 | G100: 11.125 | H100: Yes
A101: MP1001H | B101: 1 | D101: 100 | G101: 11.125 | H101: Can Add
A102: MW0100 | B102: 24 Hour | D102: 100 | G102: 11.125 | H102: Yes
A103: MP5000 | B103: 24 Hour | D103: 5000 | G103: 11.125 | H103: Yes
A104: MP100S | B104: 7Day | D104: 100 | G104: 11.125 | H104: Can Add

Sheet Instructions
F2: Absolute Accuracy Inc.
F3: 2451 Riverside Drive, Los Angeles CA 90039
F4: Ph 323 662 9237 Fax 323 662 0904
F5: Email bbrp@aol.com Web www.aaisurvey.com
F7: Instructions for Model 3100
F8: Chart Reader.
B9: Easy Steps: 1. Press the Clear Report Data Button 2. Zero Set Arm and Set Platter to 24/00 and push Read Static Button. Complete Rotation of the chart to read the Static data. 3. Once data from the chart has been read, push enter to exit the screen and push the Process Static Button. 4. Choose Chart Scale from the Square Root or Linear selections. 5. Press the Clear Data Button. 6. Zero Set Arm and Set Platter to 24/00 and push Read Differential Button. Complete Rotation of the chart to read the Differential data. 7. Once data from the chart has been read, push enter to exit the screen and push the Process Differential Button. 8. Choose Chart Scale from the Square Root or Linear selections. 9. Press the Clear Data Button 10. Zero Set Arm and Set Platter to 24/100 and push Read Temp. Complete Rotation of the chart to read the Temperature Data 11. Once data from the chart has been read, push enter to exit the screen and push the Process Differential Button. 12. Choose Chart Scale from the Square Root or Linear selections. *Note If you choose the wrong chart type you can from the munu, clear the data (step 1) and process the data again. 13. Create Report, Compiles data from the 3 readings and sends the data to the Sales Calculation to get the daily total. 14. Enter the data in fields for your report. 15. Copy Form will save report to a new tab in the spredsheet. It can be copied to a new file and deleted if desired.
B10: Install
B11: 1. Install the driver software for the Model 3100. Remove CD from box and insert into Drive. Open Windows Explorer window to view contents of the CD. Open the Drivers directory and then open the appropriate directory for your computer, either 32bit or 64bit. If you are not sure which to choose, open the control panel from the windows start menu and choose System. The operating system you have will be listed under system type. Double click on the exe file and follow the instructions on the setup screens.
B14: 2. Copy files onto the computer’s hard drive “C”. Copy the entire directory A3100 on to the C:\\ Drive. There are three files critical to the operation of the 3100, ReadChart.exe, chartdata.txt and AAI3100-xxx.xls. Do not change the name of the ReadChart or chartdata files or try to use them in a different directory as they are location dependent and will not work in other drives or directories. If something happens to the files in the A3100 directory, you can recopy them from the CD. You must have a version of Microsoft Excel in order to operate the xls program. Open the file in Windows Excel (tested on Office 1997 2000, 2003, 2007, 2010). If you have Excel 2010 you may wish to open the AAI3100-xxx.xls file and save as macro enabled xlsm file. Make sure macros are enabled on your Excel program.
B16: 3. Setting up and testing the 3100. Remove instrument from box. (You can use inside the case if you prefer) On a flat table or desk next to PC or Laptop, plug the USB cable from the instrument to the PC. Place the chart on the center of the platter shaft and secure the chart to the platter with centering guide. The first time you plug in the USB cable into the PC there may be a few moments to install the driver software and register the 3100. (You may wish to test the Encoder-simple.exe file in the A3100 before opening up the Excel program. If the drivers have been installed correctly, and you double click on the Encoder-simple.exe, a dialog box will open. If the USB is not yet connected it will say waiting to be attached. If USB is attached there will be a serial number and some other data displayed. Rotate the chart anticlockwise and notice the dialog box will add a line for every position change of either the platter (0) or arm (1). The dialog box will record lines until the platter (0) position reaches -192 and will stop. Press the enter button and the dialog box will close.
B18: 4. Record a chart. Open the Excel Spreadsheet C:\A3100\AAI3100-xxx.xls. The spreadsheet must be set to allow macros. On Excel 2010 go to File/Options/Trust Center/Trusted Locations and put C:\A3100\ in the Allowed Paths. Upon opening the chart data screen will be open with a menu that controls the operation. If you close the menu you can re-open by pressing the Ctrl and Z keys at the same time. The first button on the top is the clear the chart. If there is a previous recording in the chart, you can clear the chart. The Excel file is a custom file based on the chart you use.The program is designed so that you can complete the operation of recording the chart without the need to enter anything on the spreadsheet. The txt file will retain the measurement data until the Read Data button is pressed. Whether you read new data in or reprocess old data remember to press the Clear Data button.
H19: Reading Chart
B20: 5. Position the chart onto the platter and set the reticule in the arm to the zero line (towards the center of platter) of the chart while setting the time position of the chart to the 12:00 A.M. Position. Note: You can use the dial on the arm stop to set zero position.
B22: 6. Check again that you are in zero position and 12:00AM.Sunday Activate the Read the Chart 2, 6 and 10 button to begin measuring operation.
B24: 7. Move the reticule on the arm up to where the line is recorded on the chart. The lines on the dialog window should advance as the arm moves up. Now move the platter anti-clockwise and follow the line with reticule moving the arm up and down as you turn the platter.
B26: 8. After complete rotation, and all the chart values are recorded into the dialog box. The dialog box will stop recording when the platter (0) reaches 192. Press the enter key to close the dialog box. Next press the Process Data button. The spreadsheet screen fills with the data from the chart. Partial reading of the chart is possible if you make sure to have reticule arm resting at zero until reading starts as you turn chart.
B28: 9. Analyze your results. You can then fill in the appropriate boxes with information about your chart. Average values from all of the chart readings will be available on the different sheets stored in this file. You can delete them or copy them to a different file if desired.
B31: 10. Types of charts. There are two basic types of recording charts, linear and square root scaled. Some charts have both scales on one chart. The basic difference between linear and square root scale is that linear evenly divides the scale from top to bottom with equal increments. The square root scale starts off with small increments at the bottom of the scale and exponentially increases the distance between graduations at the top of the scale. The purpose of this is to increase the accuracy by giving more of the measuring range where the activity is taking place. There are a variety of ranges for the scale or sometimes there is a percentage scale. ‘The formula in the spreadsheet program is based on the chart you use. The information provided and results derived are for information purposes only. Absolute Accuracy and its associates assume no liability for any decision or consequence of any action based on any results or information provided from this device or software.

Sheet SalesCalculation
H1: ANALYZER READINIGS
B2: Input in yellow cells only | H2: TIME | I2: VALUE (lb/mmscf)
H3: 06:00:00 | I3: 3.177
A4: linear Differential | B4: 40.8 | C4: SQRT= | D4: =SQRT(B4) -> 6.387487769 | H4: 08:00:00 | I4: 2.749
H5: 10:00:00 | I5: 3.057
A6: Temperature Chart reading | B6: 43.63943713 | D6: =B6*1.8 -> 78.55098684 | E6: deg F | F6: deg F | H6: 12:00:00 | I6: 3.068
A7: Pressure Chart reading | B7: 19.84831871 | D7: =(B7*10)/14.5 -> 13.68849566 | F7: Bar | H7: 14:00:00 | I7: 2.842
A8: Differential Reading | B8: 6.74375584 | D8: =B8 -> 6.74375584 | H8: 16:00:00 | I8: 2.709
C9: SALES GAS TO NGC: | D9: =ChartCalculations!G27 -> 42.91990501 | E9: =D9+1.5 -> 44.41990501 | H9: 20:00:00 | I9: 2.269 | M9: pressure averaging
C10: TOTAL GAS PRODUCED: | D10: =D9+0.24 -> 43.15990501 | E10: =D10+1.5 -> 44.65990501 | H10: 22:00:00 | I10: 1.79 | M10: pressure | N10: no. of hours | O10: total
H11: 1 | I11: 1.9 | M11: 76 | N11: 21 | O11: =M11*N11 -> 1596
H12: 1 | I12: 24.87
H13: 1.083333333 | I13: 24.96
H14: 1.166666667 | I14: 25.02
H15: AVEARGE | I15: =AVERAGE(I12:I14) -> 24.95

Sheet ChartCalculations
B1: GAS RATE Calculation
E2: Temp deg C | G2: D ('mm) | H2: Orifice ('mm)
B3: P base | C3: T Base | D3: SG | E3: =(E5-32)/1.8 -> 25.86165936 | G3: =G5*25.4 -> 205.0034 | H3: =H5*25.4 -> 152.4 | K3: Conversions
B4: PSIA | C4: F | D4: Base | E4: temp deg F | F4: SG | G4: D (inch) | H4: Orifice (inch) | I4: Beta | K4: From | L4: To | M4: x Factor
B5: 14.73 | C5: 60 | D5: 1 | E5: =SalesCalculation!D6 -> 78.55098684 | F5: 0.6478286734 | G5: 8.071 | H5: 6 | I5: =H5/G5 -> 0.7434023045 | K5: Inch H2O | L5: PSI | M5: 0.036128
K6: PSI | L6: Inch H2O | M6: =1/M5 -> 27.67936227
B7: Diff Pressure - Flange Taps | E7: Static Pressure - Upstream Flange Tap
B8: Reading | C8: Meter Fact | D8: DP Range | E8: Reading | F8: Meter fact | G8: Element range | H8: Chart range | I8: Calc P
B9: SQRT | I9: psig | J9: Adjusted P | K9: Adjusted T
B10: =SalesCalculation!D8 -> 6.74375584 | C10: 1 | D10: 200 | E10: =SalesCalculation!B7 -> 19.84831871 | F10: 1 | G10: 1500 | H10: 100 | I10: =E10*G10/H10*F10 -> 297.7247807 | J10: =(($I$10)*156.47/(160.8-(7.22*$F$5))) -> 298.3871231 | K10: =($E$5+460)*226.29/(99.15+(211.9*$F$5))-460 -> 55.4647625
I11: =I10/14.5 -> 20.5327435 | J11: Bar
B13: Factor | C13: Value | D13: Units | E13: Value | F13: Units | G13: sqrt | I13: RESULT
A14: Pressure Differential | B14: Hw | C14: =(B10*C10)^2*D10/100 -> 90.95648567 | D14: Inch H2O | E14: =C14*M5 -> 3.286075914 | F14: psi | G14: =SQRT(C14) -> 9.537110971 | I14: Gas rate (MMscf/d)
A15: Pressure Extension | B15: Press Ext | C15: =SQRT(C14*(I10+B5)) -> 168.5816977 | E15: =1000*E14/14.73 -> 223.087299 | F15: mbar | I15: =24*C15*C16*C17*C18*C19*C20*C21*C22*C23*C24*C25*C26/1000000 -> 42.91990501
A16: Base Orifice Factor | B16: Fb | C16: =OFFSET('Orifice factors'!$A$5,MATCH($H$5,'Orifice factors'!$A$6:$A$90,0),MATCH($G$5,'Orifice factors'!$B$5:$AL$5,0)) -> 8707
A17: Reynolds No Fact | B17: Fr | C17: =1+(OFFSET(Reynolds!$A$5,MATCH($H$5,Reynolds!$A$6:$A$90,0),MATCH($G$5,Reynolds!$B$5:$AL$5,0))/$C$15) -> 1.000348792
A18: Expansion Fact | B18: Y | C18: =1-(0.41+0.35*((H5/G5)^4))*(C14/(36.01*(I10+B5))) -> 0.9958214365
A19: Pressure Base factor | B19: Fpb | C19: =14.73/B5 -> 1
A20: Temperature Base Factor | B20: Ftb | C20: =(460+C5)/520 -> 1
A21: Flowing Temp Factor | B21: Ftf | C21: =SQRT(520/(460+E5)) -> 0.9826260171
A22: SG Factor | B22: Fg | C22: =SQRT(1/F5) -> 1.242424242
A23: Supercompressability Factor | B23: Fpv | C23: =ZFactor!D13 -> 1.0029
A24: Manometer Factor | B24: Fm | C24: 1
A25: Orifice Thermal Expansion F. | B25: Fa | C25: =1+(0.0000185*(E5-68)) -> 1.000195193
A26: Gauge Location Factor | B26: Fl | C26: 0.9987
D27: GAS VOLUME = | G27: =I15 -> 42.91990501 | H27: MMscf/d

Sheet Gas SG
B2: Input in yellow cells only
A4: Time for gas flow across orifice | B4: 33 | C4: SQUARE= | D4: =B4*B4 -> 1089
A5: Time for air flow across orifice | B5: 41 | C5: SQUARE= | D5: =B5*B5 -> 1681
A6: Temperature | B6: 32 | C6: deg C | D6: =(B6*1.8)+32 -> 89.6 | E6: deg F
A8: GAS SG | B8: =D4/D5 -> 0.6478286734

Sheet Orifice factors
A1: Base Orifice Factors
B4: Pipe Dia
A5: Orif. Dia | B5: 1.689 | C5: 1.939 | D5: 2.067 | E5: 2.3 | F5: 2.626 | G5: 2.9 | H5: 3.068 | I5: 3.152 | J5: 3.438 | K5: 3.826 | L5: 4.026 | M5: 4.897 | N5: 5.189 | O5: 5.761 | P5: 6.065 | Q5: 7.625 | R5: 7.981 | S5: 8.071 | T5: 9.564 | U5: 10.02 | V5: 10.136 | W5: 11.376 | X5: 11.938 | Y5: 12.09 | Z5: 14.312 | AA5: 14.688 | AB5: 15 | AC5: 15.25 | AD5: 18.814 | AE5: 19 | AF5: 19.25 | AG5: 22.626 | AH5: 23 | AI5: 23.25 | AJ5: 28.628 | AK5: 29 | AL5: 29.25
A6: 0.25 | B6: 12.695 | C6: 12.708 | D6: 12.711 | E6: 12.714 | F6: 12.712 | G6: 12.708 | H6: 12.705 | I6: 12.703 | J6: 12.697 | K6: 12.688 | L6: 12.683
A7: 0.375 | B7: 28.474 | C7: 28.44 | D7: 28.427 | E7: 28.411 | F7: 28.393 | G7: 28.382 | H7: 28.376 | I7: 28.373 | J7: 28.364 | K7: 28.353 | L7: 28.348
A8: 0.5 | B8: 50.777 | C8: 50.587 | D8: 50.521 | E8: 50.435 | F8: 50.356 | G8: 50.313 | H8: 50.292 | I8: 50.283 | J8: 50.258 | K8: 50.234 | L8: 50.224 | M8: 50.197 | N8: 50.191 | O8: 50.182 | P8: 50.178
A9: 0.625 | B9: 80.09 | C9: 79.508 | D9: 79.311 | E9: 79.052 | F9: 78.817 | G9: 78.687 | H9: 78.625 | I9: 78.599 | J9: 78.523 | K9: 78.45 | L9: 78.421 | M9: 78.338 | N9: 78.321 | O9: 78.296 | P9: 78.287
A10: 0.75 | B10: 117.09 | C10: 115.62 | D10: 115.14 | E10: 114.52 | F10: 113.99 | G10: 113.7 | H10: 113.56 | I10: 113.5 | J10: 113.33 | K10: 113.15 | L10: 113.08 | M10: 112.87 | N10: 112.82 | O10: 112.75 | P10: 112.72
A11: 0.875 | B11: 162.95 | C11: 159.56 | D11: 158.47 | E11: 157.12 | F11: 156 | G11: 155.41 | H11: 155.14 | I11: 155.03 | J11: 154.71 | K11: 154.4 | L11: 154.27 | M11: 153.88 | N11: 153.78 | O11: 153.63 | P11: 153.56 | Q11: 153.34 | R11: 153.31 | S11: 153.31
A12: 1 | B12: 219.77 | C12: 212.47 | D12: 210.22 | E12: 207.44 | F12: 205.18 | G12: 204.04 | H12: 203.54 | I12: 203.33 | J12: 202.75 | K12: 202.2 | L12: 201.99 | M12: 201.34 | N12: 201.19 | O12: 200.96 | P12: 200.85 | Q12: 200.46 | R12: 200.4 | S12: 200.38 | T12: 200.2
A13: 1.125 | B13: 290.99 | C13: 276.19 | D13: 271.7 | E13: 266.35 | F13: 262.06 | G13: 259.95 | H13: 259.04 | I13: 258.65 | J13: 257.63 | K13: 256.69 | L13: 256.33 | M13: 255.31 | N13: 255.08 | O13: 254.72 | P13: 254.56 | Q13: 253.99 | R13: 253.89 | S13: 253.87 | T13: 253.56 | U13: 253.48 | V13: 253.47
A14: 1.25 | B14: 385.78 | C14: 353.58 | D14: 345.13 | E14: 335.12 | F14: 327.39 | G14: 323.63 | H14: 322.03 | I14: 321.37 | J14: 319.61 | K14: 318.03 | L14: 317.45 | M14: 315.83 | N14: 315.48 | O14: 314.95 | P14: 314.72 | Q14: 313.91 | R14: 313.78 | S14: 313.74 | T14: 313.31 | U14: 313.2 | V14: 313.18 | W14: 312.94 | X14: 312.85 | Y14: 312.83
A15: 1.375 | C15: 448.59 | D15: 433.5 | E15: 415.75 | F15: 402.18 | G15: 395.8 | H15: 393.09 | I15: 391.97 | J15: 389.03 | K15: 386.45 | L15: 385.51 | M15: 382.99 | N15: 382.47 | O15: 381.7 | P15: 381.37 | Q15: 380.25 | R15: 380.06 | S15: 380.02 | T15: 379.44 | U15: 379.29 | V15: 379.26 | W15: 378.94 | X15: 378.82 | Y15: 378.79
A16: 1.393 | L16: 420
A17: 1.5 | D17: 542.27 | E17: 510.86 | F17: 487.98 | G17: 477.36 | H17: 472.96 | I17: 471.14 | J17: 466.39 | K17: 462.27 | L17: 460.79 | M17: 456.93 | N17: 456.16 | O17: 455.03 | P17: 454.57 | Q17: 453.02 | R17: 452.78 | S17: 452.72 | T17: 451.95 | U17: 451.76 | V17: 451.72 | W17: 451.3 | X17: 451.14 | Y17: 451.1 | AA17: 450.53 | AB17: 450.48
A18: 1.625 | E18: 623.91 | F18: 586.82 | G18: 569.65 | H18: 562.58 | I18: 559.72 | J18: 552.31 | K18: 545.89 | L18: 543.61 | M18: 537.77 | N18: 536.64 | O18: 535.03 | P18: 534.38 | Q18: 532.27 | R18: 531.95 | S18: 531.87 | T18: 530.87 | U18: 530.63 | V18: 530.57 | W18: 530.04 | X18: 529.84 | Y18: 529.78 | AA18: 529.06 | AB18: 528.99 | AC18: 528.94
A19: 1.75 | F19: 701.26 | G19: 674.44 | H19: 663.42 | I19: 658.96 | J19: 647.54 | K19: 637.83 | L19: 634.39 | M19: 625.73 | N19: 624.09 | O19: 621.79 | P19: 620.89 | Q19: 618.02 | R19: 617.6 | S19: 617.5 | T19: 616.2 | U19: 615.9 | V19: 615.83 | W19: 615.16 | X19: 614.91 | Y19: 614.84 | AA19: 613.94 | AB19: 613.85 | AC19: 613.78
A20: 1.875 | F20: 834.88 | G20: 793.88 | H20: 777.18 | I20: 770.44 | J20: 753.17 | K20: 738.75 | L20: 733.68 | M20: 721.03 | N20: 718.69 | O20: 715.44 | P20: 714.18 | Q20: 710.32 | R20: 709.77 | S20: 709.64 | T20: 707.98 | U20: 707.6 | V20: 707.51 | W20: 706.68 | X20: 706.36 | Y20: 706.28 | AA20: 705.18 | AB20: 705.07 | AC20: 704.99
A21: 1.96 | L21: 800
A22: 2 | G22: 930.65 | H22: 906.01 | I22: 896.06 | J22: 870.59 | K22: 849.41 | L22: 842.12 | M22: 823.99 | N22: 820.68 | O22: 816.13 | P22: 814.41 | Q22: 809.22 | R22: 808.5 | S22: 808.34 | T22: 806.23 | U22: 805.76 | V22: 805.65 | W22: 804.61 | X22: 804.23 | Y22: 804.13 | AA22: 802.78 | AB22: 802.65 | AC22: 802.55 | AD22: 801.4 | AE22: 801.35 | AF22: 801.29
A23: 2.125 | G23: 1091.2 | H23: 1052.5 | I23: 1038.1 | J23: 1001.4 | K23: 970.95 | L23: 960.48 | M23: 934.97 | N23: 930.35 | O23: 924.07 | P23: 921.71 | Q23: 914.78 | R23: 913.85 | S23: 913.64 | T23: 910.97 | U23: 910.38 | V23: 910.24 | W23: 908.98 | X23: 908.51 | Y23: 908.39 | AA23: 906.77 | AB23: 906.61 | AC23: 906.49 | AD23: 905.11 | AE23: 905.05 | AF23: 904.98
A24: 2.25 | H24: 1223.2 | I24: 1199.9 | J24: 1147.7 | K24: 1104.7 | L24: 1089.9 | M24: 1054.4 | N24: 1048.1 | O24: 1039.5 | P24: 1036.3 | Q24: 1027.1 | R24: 1025.9 | S24: 1025.6 | T24: 1022.2 | U24: 1021.5 | V24: 1021.3 | W24: 1019.8 | X24: 1019.2 | Y24: 1019.1 | AA24: 1017.1 | AB24: 1017 | AC24: 1016.8 | AD24: 1015.2 | AE24: 1015.1 | AF24: 1015
A25: 2.29 | L25: 1160
A26: 2.375 | J26: 1311.7 | K26: 1252.1 | L26: 1231.7 | M26: 1182.9 | N26: 1174.2 | O26: 1162.6 | P26: 1158.3 | Q26: 1146.2 | R26: 1144.7 | S26: 1144.3 | T26: 1140.1 | U26: 1139.2 | V26: 1139 | W26: 1137.1 | X26: 1136.4 | Y26: 1136.2 | AA26: 1133.9 | AB26: 1133.7 | AC26: 1133.5 | AD26: 1131.6 | AE26: 1131.5 | AF26: 1131.4 | AG26: 1130.2 | AH26: 1130.1 | AI26: 1130
A27: 2.5 | J27: 1498.4 | K27: 1415 | L27: 1387.2 | M27: 1320.9 | N27: 1309.3 | O27: 1293.8 | P27: 1288.2 | Q27: 1272.3 | R27: 1270.3 | S27: 1269.8 | T27: 1264.5 | U27: 1263.4 | V27: 1263.1 | W27: 1260.8 | X27: 1260 | Y27: 1259.8 | AA27: 1257.1 | AB27: 1256.8 | AC27: 1256.6 | AD27: 1254.4 | AE27: 1254.3 | AF27: 1254.2 | AG27: 1252.8 | AH27: 1252.6 | AI27: 1252.6
A28: 2.625 | K28: 1595.6 | L28: 1558.2 | M28: 1469.2 | N28: 1453.9 | O28: 1433.5 | P28: 1426 | Q28: 1405.4 | R28: 1402.9 | S28: 1402.3 | T28: 1395.6 | U28: 1394.2 | V28: 1393.9 | W28: 1391.1 | X28: 1390.1 | Y28: 1389.9 | AA28: 1386.7 | AB28: 1386.4 | AC28: 1386.1 | AD28: 1383.6 | AE28: 1383.5 | AF28: 1383.3 | AG28: 1381.7 | AH28: 1381.5 | AI28: 1381.4
A29: 2.75 | K29: 1797.1 | L29: 1746.7 | M29: 1628.9 | N29: 1608.7 | O29: 1582 | P29: 1572.3 | Q29: 1545.7 | R29: 1542.5 | S29: 1541.8 | T29: 1533.4 | U29: 1531.7 | V29: 1531.3 | W29: 1528 | X29: 1526.8 | Y29: 1526.5 | AA29: 1522.7 | AB29: 1522.4 | AC29: 1522.1 | AD29: 1519.1 | AE29: 1519 | AF29: 1518.8 | AG29: 1517 | AH29: 1516.8 | AI29: 1516.7
A30: 2.875 | L30: 1955.5 | M30: 1801 | N30: 1774.5 | O30: 1740 | P30: 1727.5 | Q30: 1693.4 | R30: 1689.3 | S30: 1688.4 | T30: 1678 | U30: 1675.9 | V30: 1675.4 | W30: 1671.4 | X30: 1670 | Y30: 1669.6 | AA30: 1665.2 | AB30: 1664.8 | AC30: 1664.5 | AD30: 1661 | AE30: 1660.9 | AF30: 1660.7 | AG30: 1658.6 | AH30: 1658.4 | AI30: 1658.3 | AJ30: 1656
A31: 3 | L31: 2195 | M31: 1986.6 | N31: 1952.4 | O31: 1907.8 | P31: 1891.9 | Q31: 1848.6 | R31: 1843.5 | S31: 1842.3 | T31: 1829.4 | U31: 1826.9 | V31: 1826.3 | W31: 1821.4 | X31: 1819.7 | Y31: 1819.3 | AA31: 1814.1 | AB31: 1813.7 | AC31: 1813.3 | AD31: 1809.4 | AE31: 1809.2 | AF31: 1809 | AG31: 1806.6 | AH31: 1806.4 | AI31: 1806.2 | AJ31: 1803.7 | AK31: 1803.5 | AL31: 1803.4
A32: 3.125 | M32: 2187.2 | N32: 2143.4 | O32: 2086.4 | P32: 2066.1 | Q32: 2011.6 | R32: 2005.2 | S32: 2003.8 | T32: 1987.8 | U32: 1984.7 | V32: 1984 | W32: 1978.1 | X32: 1976.1 | Y32: 1975.6 | AA32: 1969.6 | AB32: 1969 | AC32: 1968.6 | AD32: 1964.1 | AE32: 1963.9 | AF32: 1963.7 | AG32: 1961 | AH32: 1960.7 | AI32: 1960.6 | AJ32: 1957.7 | AK32: 1957.5 | AL32: 1957.4
A33: 3.25 | M33: 2404.2 | N33: 2348.8 | O33: 2276.5 | P33: 2250.8 | Q33: 2182.6 | R33: 2174.6 | S33: 2172.9 | T33: 2153.2 | U33: 2149.5 | V33: 2148.6 | W33: 2141.5 | X33: 2139.2 | Y33: 2138.6 | AA33: 2131.5 | AB33: 2130.9 | AC33: 2130.4 | AD33: 2125.3 | AE33: 2125.1 | AF33: 2124.8 | AG33: 2121.7 | AH33: 2121.5 | AI33: 2121.3 | AJ33: 2118 | AK33: 2117.9 | AL33: 2117.7
A34: 3.375 | M34: 2639.5 | N34: 2569.8 | O34: 2479.1 | P34: 2446.8 | Q34: 2361.8 | R34: 2352 | S34: 2349.9 | T34: 2325.7 | U34: 2321.2 | V34: 2320.2 | W34: 2311.7 | X34: 2308.9 | Y34: 2308.2 | AA34: 2299.9 | AB34: 2299.2 | AC34: 2298.7 | AD34: 2292.9 | AE34: 2292.6 | AF34: 2292.3 | AG34: 2288.9 | AH34: 2288.6 | AI34: 2288.4 | AJ34: 2284.7 | AK34: 2284.5 | AL34: 2284.4
A35: 3.5 | M35: 2895.5 | N35: 2808.1 | O35: 2695.1 | P35: 2654.9 | Q35: 2549.7 | R35: 2537.7 | S35: 2535 | T35: 2505.6 | U35: 2500.1 | V35: 2498.9 | W35: 2488.7 | X35: 2485.4 | Y35: 2484.6 | AA35: 2474.9 | AB35: 2474.1 | AC35: 2473.5 | AD35: 2466.9 | AE35: 2466.6 | AF35: 2466.3 | AG35: 2462.4 | AH35: 2462.1 | AI35: 2461.8 | AJ35: 2457.8 | AK35: 2457.6 | AL35: 2457.4
A36: 3.625 | M36: 3180.8 | N36: 3065.3 | O36: 2925.7 | P36: 2876 | Q36: 2746.5 | R36: 2731.8 | S36: 2728.6 | T36: 2692.8 | U36: 2686.2 | V36: 2684.7 | W36: 2672.6 | X36: 2668.7 | Y36: 2667.7 | AA36: 2656.4 | AB36: 2655.5 | AC36: 2654.8 | AD36: 2647.3 | AE36: 2647 | AF36: 2646.6 | AG36: 2642.4 | AH36: 2642 | AI36: 2641.7 | AJ36: 2637.3 | AK36: 2637 | AL36: 2636.8
A37: 3.75 | N37: 3345.5 | O37: 3172.1 | P37: 3111.2 | Q37: 2952.6 | R37: 2934.8 | S37: 2930.8 | T37: 2887.6 | U37: 2879.7 | V37: 2877.9 | W37: 2863.5 | X37: 2858.8 | Y37: 2857.7 | AA37: 2844.6 | AB37: 2843.5 | AC37: 2842.7 | AD37: 2834.2 | AE37: 2833.9 | AF37: 2833.5 | AG37: 2828.7 | AH37: 2828.3 | AI37: 2828 | AJ37: 2823.1 | AK37: 2822.8 | AL37: 2822.6
A38: 3.875 | N38: 3657.7 | O38: 3435.8 | P38: 3361.5 | Q38: 3168.3 | R38: 3146.9 | S38: 3142.1 | T38: 3090.1 | U38: 3080.7 | V38: 3078.5 | W38: 3061.4 | X38: 3055.9 | Y38: 3054.6 | AA38: 3039.4 | AB38: 3038.1 | AC38: 3037.2 | AD38: 3027.5 | AE38: 3027.3 | AF38: 3026.8 | AG38: 3021.5 | AH38: 3021 | AI38: 3020.7 | AJ38: 3015.2 | AK38: 3014.9 | AL38: 3014.7
A39: 4 | O39: 3718.2 | P39: 3628.2 | Q39: 3394.3 | R39: 3368.5 | S39: 3362.9 | T39: 3300.6 | U39: 3289.3 | V39: 3286.8 | W39: 3266.4 | X39: 3260 | Y39: 3258.5 | AA39: 3240.8 | AB39: 3239.4 | AC39: 3238.3 | AD39: 3227.5 | AE39: 3227.1 | AF39: 3226.5 | AG39: 3220.6 | AH39: 3220.1 | AI39: 3219.8 | AJ39: 3213.8 | AK39: 3213.5 | AL39: 3213.3
A40: 4.25 | O40: 4354.8 | P40: 4216.6 | Q40: 3879.4 | R40: 3842.3 | S40: 3834.2 | T40: 3746.1 | U40: 3730.2 | V40: 3726.7 | W40: 3698.4 | X40: 3689.6 | Y40: 3687.5 | AA40: 3663.8 | AB40: 3661.9 | AC40: 3660.5 | AD40: 3646.7 | AE40: 3646.2 | AF40: 3645.6 | AG40: 3638.3 | AH40: 3637.7 | AI40: 3637.2 | AJ40: 3630.1 | AK40: 3629.7 | AL40: 3629.4
A41: 4.5 | P41: 4900.9 | Q41: 4412.8 | R41: 4360.5 | S41: 4349 | T41: 4226 | U41: 4204.1 | V41: 4199.2 | W41: 4160.4 | X41: 4148.4 | Y41: 4145.5 | AA41: 4113.9 | AB41: 4111.5 | AC41: 4109.7 | AD41: 4092.1 | AE41: 4091.5 | AF41: 4090.6 | AG41: 4081.8 | AH41: 4081 | AI41: 4080.5 | AJ41: 4071.9 | AK41: 4071.4 | AL41: 4071.1
A42: 4.75 | Q42: 5000.7 | R42: 4928.1 | S42: 4912.2 | T42: 4742.7 | U42: 4712.8 | V42: 4706.2 | W42: 4653.4 | X42: 4637.2 | Y42: 4633.4 | Z42: 4600.75 | AA42: 4591.5 | AB42: 4588.4 | AC42: 4586 | AD42: 4563.7 | AE42: 4562.9 | AF42: 4561.9 | AG42: 4551.1 | AH42: 4550.1 | AI42: 4549.5 | AJ42: 4539.3 | AK42: 4538.8 | AL42: 4538.4
A43: 5 | Q43: 5650 | R43: 5551.1 | S43: 5529.5 | T43: 5298.6 | U43: 5258.4 | V43: 5249.6 | W43: 5179 | X43: 5157.4 | Y43: 5152.3 | AA43: 5097.2 | AB43: 5093.1 | AC43: 5090.1 | AD43: 5061.8 | AE43: 5060.8 | AF43: 5059.6 | AG43: 5046.4 | AH43: 5045.2 | AI43: 5044.5 | AJ43: 5032.4 | AK43: 5031.8 | AL43: 5031.4
A44: 5.25 | Q44: 6369.3 | R44: 6236.4 | S44: 6207.3 | T44: 5897.4 | U44: 5843.6 | V44: 5831.8 | W44: 5738.5 | X44: 5710 | Y44: 5703.3 | AA44: 5631.4 | AB44: 5626.1 | AC44: 5622.2 | AD44: 5586.6 | AE44: 5585.4 | AF44: 5583.8 | AG44: 5567.7 | AH44: 5566.4 | AI44: 5565.5 | AJ44: 5551.3 | AK44: 5550.5 | AL44: 5550
A45: 5.5 | Q45: 7170.9 | R45: 6992 | S45: 6953.6 | T45: 6543.1 | U45: 6471.9 | V45: 6456.3 | W45: 6333.8 | X45: 6296.6 | Y45: 6287.9 | AA45: 6194.8 | AB45: 6188.1 | AC45: 6183.1 | AD45: 6138.2 | AE45: 6136.7 | AF45: 6134.8 | AG45: 6115.3 | AH45: 6113.6 | AI45: 6112.6 | AJ45: 6095.8 | AK45: 6094.9 | AL45: 6094.4
A46: 5.75 | R46: 7830 | S46: 7777.8 | T46: 7240 | U46: 7146.9 | V46: 7126.5 | W46: 6966.9 | X46: 6919 | Y46: 6907.8 | AA46: 6788.1 | AB46: 6779.6 | AC46: 6773.3 | AD46: 6717.1 | AE46: 6715.2 | AF46: 6712.8 | AG46: 6689.1 | AH46: 6687.2 | AI46: 6685.9 | AJ46: 6666.2 | AK46: 6665.2 | AL46: 6664.5
A47: 6 | S47: 8707 | T47: 7993.3 | U47: 7872.9 | V47: 7846.6 | W47: 7640.4 | X47: 7579 | Y47: 7564.7 | AA47: 7412.3 | AB47: 7401.5 | AC47: 7393.6 | AD47: 7323.4 | AE47: 7321.1 | AF47: 7318.2 | AG47: 7289.4 | AH47: 7287.1 | AI47: 7285.6 | AJ47: 7262.5 | AK47: 7261.3 | AL47: 7260.5
A48: 6.25 | T48: 8808.9 | U48: 8654.8 | V48: 8621.1 | W48: 8357.3 | X48: 8278.9 | Y48: 8260.7 | AA48: 8068.3 | AB48: 8054.8 | AC48: 8044.8 | AD48: 7957.5 | AE48: 7954.7 | AF48: 7951.2 | AG48: 7916.4 | AH48: 7913.7 | AI48: 7911.9 | AJ48: 7884.7 | AK48: 7883.4 | AL48: 7882.5
A49: 6.5 | T49: 9693.3 | U49: 9498.1 | V49: 9455.3 | W49: 9121 | X49: 9021.7 | Y49: 8998.7 | AA49: 8757.3 | AB49: 8740.3 | AC49: 8727.9 | AD49: 8619.9 | AE49: 8616.5 | AF49: 8612.2 | AG49: 8570.2 | AH49: 8566.9 | AI49: 8564.8 | AJ49: 8533 | AK49: 8531.4 | AL49: 8530.4
A50: 6.75 | T50: 10654 | U50: 10409 | V50: 10355 | W50: 9935.2 | X50: 9810.5 | Y50: 9781.6 | AA50: 9480.4 | AB50: 9459.4 | AC50: 9444 | AD50: 9311.1 | AE50: 9306.9 | AF50: 9301.6 | AG50: 9251.1 | AH50: 9247.2 | AI50: 9244.7 | AJ50: 9207.4 | AK50: 9205.6 | AL50: 9204.4
A51: 7 | T51: 11711 | U51: 11394 | V51: 11327 | W51: 10804 | X51: 10649 | Y51: 10613 | Z51: 10269 | AA51: 10239 | AB51: 10213 | AC51: 10194 | AD51: 10031 | AE51: 10026 | AF51: 10020 | AG51: 9959.3 | AH51: 9954.6 | AI51: 9951.7 | AJ51: 9908 | AK51: 9905.9 | AL51: 9904.6
A52: 7.25 | U52: 12467 | V52: 12381 | W52: 11732 | X52: 11540 | Y52: 11496 | Z52: 11097 | AA52: 11035 | AB52: 11003 | AC52: 10980 | AD52: 10782 | AE52: 10776 | AF52: 10768 | AG52: 10695 | AH52: 10689 | AI52: 10686 | AJ52: 10635 | AK52: 10633 | AL52: 10631
A53: 7.5 | U53: 13656 | V53: 13541 | W53: 12725 | X53: 12489 | Y53: 12434 | Z53: 11920 | AA53: 11869 | AB53: 11831 | AC53: 11803 | AD53: 11562 | AE53: 11555 | AF53: 11546 | AG53: 11459 | AH53: 11452 | AI53: 11448 | AJ53: 11388 | AK53: 11386 | AL53: 11384
A54: 7.75 | W54: 13787 | X54: 13500 | Y54: 13433 | Z54: 12834 | AA54: 12745 | AB54: 12698 | AC54: 12664 | AD54: 12374 | AE54: 12365 | AF54: 12354 | AG54: 12250 | AH54: 12243 | AI54: 12238 | AJ54: 12168 | AK54: 12165 | AL54: 12163
A55: 8 | W55: 14927 | X55: 14578 | Y55: 14498 | Z55: 13741 | AA55: 13664 | AB55: 13607 | AC55: 13566 | AD55: 13218 | AE55: 13207 | AF55: 13194 | AG55: 13071 | AH55: 13062 | AI55: 13056 | AJ55: 12975 | AK55: 12971 | AL55: 12969
A56: 8.25 | W56: 16158 | X56: 15730 | Y56: 15633 | Z56: 14694 | AA56: 14628 | AB56: 14560 | AC56: 14510 | AD56: 14095 | AE56: 14082 | AF56: 14066 | AG56: 13920 | AH56: 13910 | AI56: 13903 | AJ56: 13809 | AK56: 13805 | AL56: 13802
A57: 8.5 | W57: 17505 | X57: 16963 | Y57: 16845 | Z57: 15759 | AA57: 15642 | AB57: 15560 | AC57: 15500 | AD57: 15005 | AE57: 14990 | AF57: 14971 | AG57: 14799 | AH57: 14787 | AI57: 14779 | AJ57: 14669 | AK57: 14665 | AL57: 14661
A58: 8.75 | X58: 18297 | Y58: 18148 | Z58: 16813 | AA58: 16706 | AB58: 16609 | AC58: 16538 | AD58: 15950 | AE58: 15933 | AF58: 15911 | AG58: 15708 | AH58: 15693 | AI58: 15684 | AJ58: 15557 | AK58: 15552 | AL58: 15548
A59: 9 | Y59: 19566 | Z59: 17992 | AA59: 17826 | AB59: 17711 | AC59: 17627 | AD59: 16932 | AE59: 16911 | AF59: 16885 | AG59: 16647 | AH59: 16630 | AI59: 16620 | AJ59: 16473 | AK59: 16466 | AL59: 16462
A60: 9.25 | Z60: 19164 | AA60: 19004 | AB60: 18868 | AC60: 18769 | AD60: 17950 | AE60: 17926 | AF60: 17895 | AG60: 17618 | AH60: 17598 | AI60: 17585 | AJ60: 17416 | AK60: 17409 | AL60: 17404
A61: 9.5 | Z61: 20479 | AA61: 20245 | AB61: 20085 | AC61: 19969 | AD61: 19007 | AE61: 18979 | AF61: 18943 | AG61: 18620 | AH61: 18597 | AI61: 18582 | AJ61: 18387 | AK61: 18379 | AL61: 18373
A62: 9.75 | Z62: 21786 | AA62: 21552 | AB62: 21365 | AC62: 21229 | AD62: 20104 | AE62: 20071 | AF62: 20030 | AG62: 19655 | AH62: 19628 | AI62: 19611 | AJ62: 19386 | AK62: 19377 | AL62: 19371
A63: 10 | Z63: 23247 | AA63: 22930 | AB63: 22712 | AC63: 22554 | AD63: 21243 | AE63: 21205 | AF63: 21157 | AG63: 20723 | AH63: 20692 | AI63: 20672 | AJ63: 20414 | AK63: 20403 | AL63: 20396
A64: 10.25 | Z64: 24706 | AA64: 24385 | AB64: 24132 | AC64: 23947 | AD64: 22426 | AE64: 22382 | AF64: 22325 | AG64: 21825 | AH64: 21789 | AI64: 21767 | AJ64: 21471 | AK64: 21458 | AL64: 21450
A65: 10.5 | Z65: 26385 | AA65: 25924 | AB65: 25628 | AC65: 25414 | AD65: 23654 | AE65: 23603 | AF65: 23538 | AG65: 22962 | AH65: 22921 | AI65: 22895 | AJ65: 22556 | AK65: 22542 | AL65: 22533
A66: 10.75 | Z66: 27853 | AA66: 27567 | AB66: 27210 | AC66: 26960 | AD66: 24931 | AE66: 24872 | AF66: 24797 | AG66: 24134 | AH66: 24088 | AI66: 24058 | AJ66: 23672 | AK66: 23656 | AL66: 23646
A67: 11 | AA67: 29331 | AB67: 28899 | AC67: 28598 | AD67: 26257 | AE67: 26190 | AF67: 26104 | AG67: 25344 | AH67: 25290 | AI67: 25257 | AJ67: 24817 | AK67: 24799 | AL67: 24787
A68: 11.25 | AB68: 30710 | AC68: 30346 | AD68: 27636 | AE68: 27559 | AF68: 27460 | AG68: 26592 | AH68: 26531 | AI68: 26492 | AJ68: 25992 | AK68: 25972 | AL68: 25959
A69: 11.5 | AD69: 29070 | AE69: 28982 | AF69: 28870 | AG69: 27878 | AH69: 27809 | AI69: 27766 | AJ69: 27199 | AK69: 27176 | AL69: 27161
A70: 11.75 | AD70: 30563 | AE70: 30462 | AF70: 30334 | AG70: 29205 | AH70: 29126 | AI70: 29077 | AJ70: 28436 | AK70: 28411 | AL70: 28394
A71: 12 | AD71: 32116 | AE71: 32001 | AF71: 31856 | AG71: 30574 | AH71: 30485 | AI71: 30429 | AJ71: 29706 | AK71: 29677 | AL71: 29659
A72: 12.5 | AD72: 35417 | AE72: 35270 | AF72: 35084 | AG72: 33444 | AH72: 33330 | AI72: 33259 | AJ72: 32343 | AK72: 32306 | AL72: 32283
A73: 13 | AD73: 39003 | AE73: 38817 | AF73: 38581 | AG73: 36502 | AH73: 36357 | AI73: 36267 | AJ73: 35114 | AK73: 35068 | AL73: 35039
A74: 13.5 | AD74: 42913 | AE74: 42673 | AF74: 42375 | AG74: 39762 | AH74: 39581 | AI74: 39467 | AJ74: 38025 | AK74: 37968 | AL74: 37932
A75: 14 | AD75: 47244 | AE75: 46921 | AF75: 46523 | AG75: 43241 | AH75: 43015 | AI75: 42874 | AJ75: 41082 | AK75: 41012 | AL75: 40968
A76: 14.5 | AG76: 46958 | AH76: 46679 | AI76: 46505 | AJ76: 44291 | AK76: 44206 | AL76: 44152
A77: 15 | AG77: 50934 | AH77: 50591 | AI77: 50378 | AJ77: 47661 | AK77: 47557 | AL77: 47490
A78: 15.5 | AG78: 55192 | AH78: 54774 | AI78: 54513 | AJ78: 51202 | AK78: 51075 | AL78: 50994
A79: 16 | AG79: 59759 | AH79: 59251 | AI79: 58935 | AJ79: 54923 | AK79: 54769 | AL79: 54671
A80: 16.5 | AG80: 64701 | AH80: 64060 | AI80: 63671 | AJ80: 58835 | AK80: 58649 | AL80: 58531
A81: 17 | AH81: 69288 | AI81: 68792 | AJ81: 62950 | AK81: 62728 | AL81: 62586
A82: 17.5 | AJ82: 67282 | AK82: 67017 | AL82: 66848
A83: 18 | AJ83: 71844 | AK83: 71530 | AL83: 71330
A84: 18.5 | AJ84: 76653 | AK84: 76282 | AL84: 76046
A85: 19 | AJ85: 81725 | AK85: 81289 | AL85: 81011
A86: 19.5 | AJ86: 87078 | AK86: 86568 | AL86: 86244
A87: 20 | AJ87: 92734 | AK87: 92140 | AL87: 91761
A88: 20.5 | AJ88: 98728 | AK88: 98025 | AL88: 97584
A89: 21 | AJ89: 105134 | AK89: 104282 | AL89: 103752
A90: 21.5 | AK90: 110983 | AL90: 110340

Sheet Reynolds
A1: Reynolds Numbers
B4: Pipe Diameter
A5: Orifice Dia | B5: 1.689 | C5: 1.939 | D5: 2.067 | E5: 2.3 | F5: 2.626 | G5: 2.9 | H5: 3.068 | I5: 3.152 | J5: 3.438 | K5: 3.826 | L5: 4.026 | M5: 4.897 | N5: 5.189 | O5: 5.761 | P5: 6.065 | Q5: 7.625 | R5: 7.981 | S5: 8.071 | T5: 9.564 | U5: 10.02 | V5: 10.136 | W5: 11.376 | X5: 11.938 | Y5: 12.09 | Z5: 14.312 | AA5: 14.688 | AB5: 15 | AC5: 15.25 | AD5: 18.814 | AE5: 19 | AF5: 19.25 | AG5: 22.626 | AH5: 23 | AI5: 23.25 | AJ5: 28.628 | AK5: 29 | AL5: 29.25
A6: 0.25 | B6: 0.0879 | C6: 0.0911 | D6: 0.0926 | E6: 0.095 | F6: 0.0979 | G6: 0.0999 | H6: 0.101 | I6: 0.1014 | J6: 0.103 | K6: 0.1047 | L6: 0.1054
A7: 0.375 | B7: 0.0677 | C7: 0.0709 | D7: 0.0726 | E7: 0.0755 | F7: 0.0792 | G7: 0.082 | H7: 0.0836 | I7: 0.0844 | J7: 0.0867 | K7: 0.0894 | L7: 0.0907
A8: 0.5 | B8: 0.0562 | C8: 0.0576 | D8: 0.0588 | E8: 0.0612 | F8: 0.0648 | G8: 0.0677 | H8: 0.0695 | I8: 0.0703 | J8: 0.073 | K8: 0.0763 | L8: 0.0779 | M8: 0.0836 | N8: 0.0852 | O8: 0.088 | P8: 0.0892
A9: 0.625 | B9: 0.052 | C9: 0.0505 | D9: 0.0506 | E9: 0.0516 | F9: 0.0541 | G9: 0.0566 | H9: 0.0583 | I9: 0.0591 | J9: 0.0618 | K9: 0.0653 | L9: 0.067 | M9: 0.0734 | N9: 0.0753 | O9: 0.0785 | P9: 0.0801
A10: 0.75 | B10: 0.0536 | C10: 0.0485 | D10: 0.0471 | E10: 0.0462 | F10: 0.047 | G10: 0.0486 | H10: 0.0498 | I10: 0.0504 | J10: 0.0528 | K10: 0.0561 | L10: 0.0578 | M10: 0.0645 | N10: 0.0665 | O10: 0.0701 | P10: 0.0718
A11: 0.875 | B11: 0.0595 | C11: 0.0506 | D11: 0.0478 | E11: 0.0445 | F11: 0.0429 | G11: 0.0433 | H11: 0.0438 | I11: 0.0442 | J11: 0.046 | K11: 0.0487 | L11: 0.0502 | M11: 0.0567 | N11: 0.0587 | O11: 0.0625 | P11: 0.0643 | Q11: 0.0723 | R11: 0.0738 | S11: 0.0742
A12: 1 | B12: 0.0677 | C12: 0.0559 | D12: 0.0515 | E12: 0.0458 | F12: 0.0416 | G12: 0.0403 | H12: 0.0402 | I12: 0.0403 | J12: 0.0411 | K12: 0.043 | L12: 0.0442 | M12: 0.05 | N12: 0.052 | O12: 0.0557 | P12: 0.0576 | Q12: 0.066 | R12: 0.0676 | S12: 0.068 | T12: 0.0738
A13: 1.125 | B13: 0.0762 | C13: 0.063 | D13: 0.0574 | E13: 0.0495 | F13: 0.0427 | G13: 0.0396 | H13: 0.0386 | I13: 0.0383 | J13: 0.038 | K13: 0.0388 | L13: 0.0396 | M13: 0.0444 | N13: 0.0462 | O13: 0.0498 | P13: 0.0517 | Q13: 0.0602 | R13: 0.0619 | S13: 0.0623 | T13: 0.0685 | U13: 0.0701 | V13: 0.0705
A14: 1.25 | B14: 0.0824 | C14: 0.0707 | D14: 0.0646 | E14: 0.055 | F14: 0.0456 | G14: 0.0408 | H14: 0.0388 | I14: 0.0381 | J14: 0.0365 | K14: 0.0361 | L14: 0.0364 | M14: 0.0399 | N14: 0.0414 | O14: 0.0447 | P14: 0.0464 | Q14: 0.0549 | R14: 0.0566 | S14: 0.0571 | T14: 0.0635 | U14: 0.0652 | V14: 0.0656 | W14: 0.0698 | X14: 0.0714 | Y14: 0.0718
A15: 1.375 | C15: 0.0772 | D15: 0.0715 | E15: 0.0614 | F15: 0.0501 | G15: 0.0435 | H15: 0.0406 | I15: 0.0394 | J15: 0.0365 | K15: 0.0347 | L15: 0.0344 | M15: 0.0363 | N15: 0.0375 | O15: 0.0403 | P15: 0.0419 | Q15: 0.0501 | R15: 0.0518 | S15: 0.0523 | T15: 0.0588 | U15: 0.0606 | V15: 0.061 | W15: 0.0654 | X15: 0.0671 | Y15: 0.0676
A16: 1.393 | L16: 0.034
A17: 1.5 | D17: 0.0773 | E17: 0.0679 | F17: 0.0554 | G17: 0.0474 | H17: 0.0436 | I17: 0.042 | J17: 0.0378 | K17: 0.0345 | L17: 0.0336 | M17: 0.0336 | N17: 0.0344 | O17: 0.0367 | P17: 0.0381 | Q17: 0.0457 | R17: 0.0474 | S17: 0.0479 | T17: 0.0545 | U17: 0.0563 | V17: 0.0568 | W17: 0.0612 | X17: 0.0631 | Y17: 0.0635 | AA17: 0.0706 | AB17: 0.0713
A18: 1.625 | E18: 0.0735 | F18: 0.0613 | G18: 0.0522 | H18: 0.0477 | I18: 0.0457 | J18: 0.0402 | K18: 0.0354 | L18: 0.0338 | M18: 0.0318 | N18: 0.0322 | O18: 0.0337 | P18: 0.0348 | Q18: 0.0418 | R18: 0.0435 | S18: 0.0439 | T18: 0.0504 | U18: 0.0523 | V18: 0.0527 | W18: 0.0573 | X18: 0.0592 | Y18: 0.0597 | AA18: 0.067 | AB18: 0.0678 | AC18: 0.0684
A19: 1.75 | F19: 0.0669 | G19: 0.0575 | H19: 0.0524 | I19: 0.05 | J19: 0.0434 | K19: 0.0372 | L19: 0.035 | M19: 0.0307 | N19: 0.0306 | O19: 0.0314 | P19: 0.0322 | Q19: 0.0383 | R19: 0.0399 | S19: 0.0403 | T19: 0.0467 | U19: 0.0485 | V19: 0.049 | W19: 0.0536 | X19: 0.0555 | Y19: 0.056 | AA19: 0.0636 | AB19: 0.0644 | AC19: 0.065
A20: 1.875 | F20: 0.0717 | G20: 0.0628 | H20: 0.0574 | I20: 0.0549 | J20: 0.0473 | K20: 0.0398 | L20: 0.037 | M20: 0.0305 | N20: 0.0298 | O20: 0.0298 | P20: 0.0303 | Q20: 0.0353 | R20: 0.0366 | S20: 0.0371 | T20: 0.0433 | U20: 0.0451 | V20: 0.0455 | W20: 0.0501 | X20: 0.0521 | Y20: 0.0526 | AA20: 0.0604 | AB20: 0.0612 | AC20: 0.0618
A21: 1.96 | L21: 0.038
A22: 2 | G22: 0.0676 | H22: 0.0624 | I22: 0.0598 | J22: 0.0517 | K22: 0.043 | L22: 0.0395 | M22: 0.0308 | N22: 0.0296 | O22: 0.0287 | P22: 0.0288 | Q22: 0.0327 | R22: 0.034 | S22: 0.0343 | T22: 0.0401 | U22: 0.0419 | V22: 0.0423 | W22: 0.0469 | X22: 0.0488 | Y22: 0.0492 | AA22: 0.0572 | AB22: 0.0581 | AC22: 0.0587 | AD22: 0.0667 | AE22: 0.0671 | AF22: 0.0676
A23: 2.125 | G23: 0.0715 | H23: 0.0669 | I23: 0.0644 | J23: 0.0563 | K23: 0.0467 | L23: 0.0427 | M23: 0.0318 | N23: 0.03 | O23: 0.0281 | P23: 0.0278 | Q23: 0.0304 | R23: 0.0315 | S23: 0.0318 | T23: 0.0372 | U23: 0.0389 | V23: 0.0393 | W23: 0.0438 | X23: 0.0458 | Y23: 0.0463 | AA23: 0.0542 | AB23: 0.0551 | AC23: 0.0558 | AD23: 0.064 | AE23: 0.0644 | AF23: 0.0649
A24: 2.25 | H24: 0.0706 | I24: 0.0685 | J24: 0.0607 | K24: 0.0507 | L24: 0.0462 | M24: 0.0334 | N24: 0.031 | O24: 0.0281 | P24: 0.0274 | Q24: 0.0286 | R24: 0.0295 | S24: 0.0297 | T24: 0.0346 | U24: 0.0362 | V24: 0.036 | W24: 0.041 | X24: 0.0429 | Y24: 0.0434 | AA24: 0.0514 | AB24: 0.0523 | AC24: 0.0529 | AD24: 0.0614 | AE24: 0.0618 | AF24: 0.0622
A25: 2.29 | L25: 0.048
A26: 2.375 | J26: 0.0648 | K26: 0.0548 | L26: 0.0501 | M26: 0.0354 | N26: 0.0324 | O26: 0.0286 | P26: 0.0274 | Q26: 0.0271 | R26: 0.0278 | S26: 0.028 | T26: 0.0322 | U26: 0.0337 | V26: 0.0341 | W26: 0.0383 | X26: 0.0402 | Y26: 0.0407 | AA26: 0.0487 | AB26: 0.0496 | AC26: 0.0502 | AD26: 0.0588 | AE26: 0.0592 | AF26: 0.0597 | AG26: 0.0659 | AH26: 0.0665 | AI26: 0.0669
A27: 2.5 | J27: 0.0683 | K27: 0.0589 | L27: 0.054 | M27: 0.0378 | N27: 0.0342 | O27: 0.0295 | P27: 0.0279 | Q27: 0.0259 | R27: 0.0264 | S27: 0.0265 | T27: 0.0302 | U27: 0.0315 | V27: 0.0319 | W27: 0.0359 | X27: 0.0377 | Y27: 0.0382 | AA27: 0.0461 | AB27: 0.047 | AC27: 0.0476 | AD27: 0.0563 | AE27: 0.0568 | AF27: 0.0573 | AG27: 0.0636 | AH27: 0.0642 | AI27: 0.0646
A28: 2.625 | K28: 0.0626 | L28: 0.0579 | M28: 0.0406 | N28: 0.0365 | O28: 0.0308 | P28: 0.0287 | Q28: 0.0251 | R28: 0.0253 | S28: 0.0254 | T28: 0.0283 | U28: 0.0296 | V28: 0.0299 | W28: 0.0336 | X28: 0.0354 | Y28: 0.0358 | AA28: 0.0436 | AB28: 0.0445 | AC28: 0.0452 | AD28: 0.054 | AE28: 0.0544 | AF28: 0.0549 | AG28: 0.0614 | AH28: 0.062 | AI28: 0.0624
A29: 2.75 | K29: 0.0659 | L29: 0.0615 | M29: 0.0436 | N29: 0.0391 | O29: 0.0324 | P29: 0.03 | Q29: 0.0246 | R29: 0.0245 | S29: 0.0245 | T29: 0.0267 | U29: 0.0278 | V29: 0.0281 | W29: 0.0316 | X29: 0.0332 | Y29: 0.0336 | AA29: 0.0413 | AB29: 0.0422 | AC29: 0.0428 | AD29: 0.0517 | AE29: 0.0521 | AF29: 0.0526 | AG29: 0.0592 | AH29: 0.0599 | AI29: 0.0603
A30: 2.875 | L30: 0.0647 | M30: 0.0468 | N30: 0.0418 | O30: 0.0343 | P30: 0.0314 | Q30: 0.0244 | R30: 0.024 | S30: 0.024 | T30: 0.0254 | U30: 0.0263 | V30: 0.0265 | W30: 0.0297 | X30: 0.0312 | Y30: 0.0317 | AA30: 0.0391 | AB30: 0.0399 | AC30: 0.0406 | AD30: 0.0494 | AE30: 0.0499 | AF30: 0.0504 | AG30: 0.0571 | AH30: 0.0578 | AI30: 0.0582 | AJ30: 0.0662
A31: 3 | L31: 0.0673 | M31: 0.05 | N31: 0.0448 | O31: 0.0366 | P31: 0.0332 | Q31: 0.0245 | R31: 0.0238 | S31: 0.0237 | T31: 0.0243 | U31: 0.025 | V31: 0.0252 | W31: 0.0278 | X31: 0.0294 | Y31: 0.0298 | AA31: 0.037 | AB31: 0.0378 | AC31: 0.0385 | AD31: 0.0473 | AE31: 0.0477 | AF31: 0.0483 | AG31: 0.0551 | AH31: 0.0557 | AI31: 0.0562 | AJ31: 0.0644 | AK31: 0.0649 | AL31: 0.0652
A32: 3.125 | M32: 0.0533 | N32: 0.0479 | O32: 0.0389 | P32: 0.0353 | Q32: 0.0248 | R32: 0.0239 | S32: 0.0237 | T32: 0.0234 | U32: 0.0239 | V32: 0.0241 | W32: 0.0264 | X32: 0.0278 | Y32: 0.0282 | AA32: 0.035 | AB32: 0.0358 | AC32: 0.0365 | AD32: 0.0452 | AE32: 0.0457 | AF32: 0.0462 | AG32: 0.0531 | AH32: 0.0538 | AI32: 0.0542 | AJ32: 0.0626 | AK32: 0.0631 | AL32: 0.0634
A33: 3.25 | M33: 0.0564 | N33: 0.051 | O33: 0.0416 | P33: 0.0375 | Q33: 0.0254 | R33: 0.0242 | S33: 0.024 | T33: 0.0226 | U33: 0.023 | V33: 0.0231 | W33: 0.0251 | X33: 0.0263 | Y33: 0.0266 | AA33: 0.0331 | AB33: 0.0339 | AC33: 0.0346 | AD33: 0.0433 | AE33: 0.0437 | AF33: 0.0442 | AG33: 0.0511 | AH33: 0.0518 | AI33: 0.0523 | AJ33: 0.0608 | AK33: 0.0613 | AL33: 0.0616
A34: 3.375 | M34: 0.0594 | N34: 0.0541 | O34: 0.0443 | P34: 0.04 | Q34: 0.0263 | R34: 0.0248 | S34: 0.0244 | T34: 0.0221 | U34: 0.0223 | V34: 0.0224 | W34: 0.0239 | X34: 0.025 | Y34: 0.0253 | AA34: 0.0314 | AB34: 0.0321 | AC34: 0.0328 | AD34: 0.0414 | AE34: 0.0418 | AF34: 0.0423 | AG34: 0.0493 | AH34: 0.05 | AI34: 0.0504 | AJ34: 0.059 | AK34: 0.0596 | AL34: 0.0599
A35: 3.5 | M35: 0.062 | N35: 0.0569 | O35: 0.0472 | P35: 0.0426 | Q35: 0.0273 | R35: 0.0255 | S35: 0.0251 | T35: 0.0219 | U35: 0.0218 | V35: 0.0218 | W35: 0.0229 | X35: 0.0238 | Y35: 0.0241 | AA35: 0.0298 | AB35: 0.0305 | AC35: 0.0311 | AD35: 0.0395 | AE35: 0.0399 | AF35: 0.0405 | AG35: 0.0474 | AH35: 0.0481 | AI35: 0.0486 | AJ35: 0.0574 | AK35: 0.0579 | AL35: 0.0582
A36: 3.625 | M36: 0.0643 | N36: 0.0597 | O36: 0.05 | P36: 0.0452 | Q36: 0.0286 | R36: 0.0265 | S36: 0.026 | T36: 0.0218 | U36: 0.0214 | V36: 0.0214 | W36: 0.0221 | X36: 0.0228 | Y36: 0.023 | AA36: 0.0282 | AB36: 0.029 | AC36: 0.0295 | AD36: 0.0378 | AE36: 0.0382 | AF36: 0.0387 | AG36: 0.0457 | AH36: 0.0464 | AI36: 0.0468 | AJ36: 0.0557 | AK36: 0.0562 | AL36: 0.0566
A37: 3.75 | N37: 0.0621 | O37: 0.0527 | P37: 0.0479 | Q37: 0.03 | R37: 0.0276 | S37: 0.0271 | T37: 0.0218 | U37: 0.0213 | V37: 0.0212 | W37: 0.0214 | X37: 0.0219 | Y37: 0.0221 | AA37: 0.0268 | AB37: 0.0275 | AC37: 0.0281 | AD37: 0.0361 | AE37: 0.0365 | AF37: 0.037 | AG37: 0.044 | AH37: 0.0447 | AI37: 0.0451 | AJ37: 0.0541 | AK37: 0.0546 | AL37: 0.055
A38: 3.875 | N38: 0.064 | O38: 0.0553 | P38: 0.0505 | Q38: 0.0316 | R38: 0.0289 | S38: 0.0283 | T38: 0.0221 | U38: 0.0213 | V38: 0.0211 | W38: 0.0208 | X38: 0.0212 | Y38: 0.0213 | AA38: 0.0255 | AB38: 0.0262 | AC38: 0.0267 | AD38: 0.0345 | AE38: 0.0349 | AF38: 0.0354 | AG38: 0.0423 | AH38: 0.043 | AI38: 0.0435 | AJ38: 0.0525 | AK38: 0.053 | AL38: 0.0534
A39: 4 | O39: 0.0578 | P39: 0.0531 | Q39: 0.0334 | R39: 0.0304 | S39: 0.0297 | T39: 0.0225 | U39: 0.0214 | V39: 0.0212 | W39: 0.0204 | X39: 0.0206 | Y39: 0.0207 | AA39: 0.0243 | AB39: 0.0249 | AC39: 0.0254 | AD39: 0.0329 | AE39: 0.0333 | AF39: 0.0339 | AG39: 0.0407 | AH39: 0.0414 | AI39: 0.0419 | AJ39: 0.0509 | AK39: 0.0515 | AL39: 0.0518
A40: 4.25 | O40: 0.062 | P40: 0.0579 | Q40: 0.0372 | R40: 0.0338 | S40: 0.033 | T40: 0.0238 | U40: 0.0222 | V40: 0.0219 | W40: 0.02 | X40: 0.0198 | Y40: 0.0198 | AA40: 0.0223 | AB40: 0.0228 | AC40: 0.0232 | AD40: 0.0301 | AE40: 0.0304 | AF40: 0.031 | AG40: 0.0376 | AH40: 0.0384 | AI40: 0.0388 | AJ40: 0.0479 | AK40: 0.0485 | AL40: 0.0488
A41: 4.5 | P41: 0.0618 | Q41: 0.0414 | R41: 0.0375 | S41: 0.0366 | T41: 0.0256 | U41: 0.0236 | V41: 0.0231 | W41: 0.0201 | X41: 0.0195 | Y41: 0.0194 | AA41: 0.0206 | AB41: 0.021 | AC41: 0.0213 | AD41: 0.0275 | AE41: 0.0279 | AF41: 0.0283 | AG41: 0.0348 | AH41: 0.0355 | AI41: 0.036 | AJ41: 0.045 | AK41: 0.0456 | AL41: 0.046
A42: 4.75 | Q42: 0.0457 | R42: 0.0416 | S42: 0.0405 | T42: 0.0279 | U42: 0.0254 | V42: 0.0249 | W42: 0.0207 | X42: 0.0196 | Y42: 0.0194 | Z42: 0.0193 | AA42: 0.0193 | AB42: 0.0196 | AC42: 0.0198 | AD42: 0.0252 | AE42: 0.0256 | AF42: 0.026 | AG42: 0.0322 | AH42: 0.0328 | AI42: 0.0333 | AJ42: 0.0423 | AK42: 0.0429 | AL42: 0.0433
A43: 5 | Q43: 0.05 | R43: 0.0457 | S43: 0.0446 | T43: 0.0307 | U43: 0.0277 | V43: 0.027 | W43: 0.0217 | X43: 0.0202 | Y43: 0.0199 | AA43: 0.0184 | AB43: 0.0185 | AC43: 0.0187 | AD43: 0.0232 | AE43: 0.0235 | AF43: 0.0239 | AG43: 0.0297 | AH43: 0.0304 | AI43: 0.0308 | AJ43: 0.0397 | AK43: 0.0403 | AL43: 0.0407
A44: 5.25 | Q44: 0.0539 | R44: 0.0497 | S44: 0.0487 | T44: 0.0337 | U44: 0.0303 | V44: 0.0295 | W44: 0.0231 | X44: 0.0212 | Y44: 0.0208 | AA44: 0.0178 | AB44: 0.0178 | AC44: 0.0179 | AD44: 0.0214 | AE44: 0.0217 | AF44: 0.022 | AG44: 0.0275 | AH44: 0.0281 | AI44: 0.0285 | AJ44: 0.0373 | AK44: 0.0378 | AL44: 0.0382
A45: 5.5 | Q45: 0.0574 | R45: 0.0535 | S45: 0.0524 | T45: 0.037 | U45: 0.0332 | V45: 0.0323 | W45: 0.0249 | X45: 0.0226 | Y45: 0.0221 | AA45: 0.0176 | AB45: 0.0174 | AC45: 0.0174 | AD45: 0.0199 | AE45: 0.0201 | AF45: 0.0204 | AG45: 0.0254 | AH45: 0.026 | AI45: 0.0264 | AJ45: 0.0349 | AK45: 0.0355 | AL45: 0.0359
A46: 5.75 | R46: 0.0569 | S46: 0.0559 | T46: 0.0404 | U46: 0.0363 | V46: 0.0354 | W46: 0.027 | X46: 0.0243 | Y46: 0.0237 | AA46: 0.0176 | AB46: 0.0174 | AC46: 0.0172 | AD46: 0.0186 | AE46: 0.0188 | AF46: 0.0191 | AG46: 0.0236 | AH46: 0.0241 | AI46: 0.0245 | AJ46: 0.0327 | AK46: 0.0333 | AL46: 0.0337
A47: 6 | S47: 0.0588 | T47: 0.0438 | U47: 0.0396 | V47: 0.0386 | W47: 0.0294 | X47: 0.0263 | Y47: 0.0255 | AA47: 0.018 | AB47: 0.0176 | AC47: 0.0173 | AD47: 0.0176 | AE47: 0.0177 | AF47: 0.0179 | AG47: 0.0219 | AH47: 0.0224 | AI47: 0.0228 | AJ47: 0.0306 | AK47: 0.0312 | AL47: 0.0316
A48: 6.25 | T48: 0.0473 | U48: 0.0429 | V48: 0.0418 | W48: 0.032 | X48: 0.0285 | Y48: 0.0277 | AA48: 0.0186 | AB48: 0.018 | AC48: 0.0177 | AD48: 0.0167 | AE48: 0.0168 | AF48: 0.017 | AG48: 0.0204 | AH48: 0.0208 | AI48: 0.0212 | AJ48: 0.0287 | AK48: 0.0292 | AL48: 0.0296
A49: 6.5 | T49: 0.0505 | U49: 0.0462 | V49: 0.0451 | W49: 0.0347 | X49: 0.0309 | Y49: 0.03 | AA49: 0.0195 | AB49: 0.0188 | AC49: 0.0183 | AD49: 0.0161 | AE49: 0.0162 | AF49: 0.0163 | AG49: 0.0191 | AH49: 0.0195 | AI49: 0.0198 | AJ49: 0.0269 | AK49: 0.0274 | AL49: 0.0277
A50: 6.75 | T50: 0.0536 | U50: 0.0493 | V50: 0.0483 | W50: 0.0376 | X50: 0.0335 | Y50: 0.0325 | AA50: 0.0206 | AB50: 0.0198 | AC50: 0.0192 | AD50: 0.0157 | AE50: 0.0157 | AF50: 0.0157 | AG50: 0.0179 | AH50: 0.0183 | AI50: 0.0185 | AJ50: 0.0252 | AK50: 0.0257 | AL50: 0.026
A51: 7 | T51: 0.0562 | U51: 0.0523 | V51: 0.0513 | W51: 0.0406 | X51: 0.0362 | Y51: 0.0351 | Z51: 0.0231 | AA51: 0.022 | AB51: 0.021 | AC51: 0.0202 | AD51: 0.0155 | AE51: 0.0155 | AF51: 0.0154 | AG51: 0.0169 | AH51: 0.0172 | AI51: 0.0174 | AJ51: 0.0236 | AK51: 0.024 | AL51: 0.0244
A52: 7.25 | U52: 0.055 | V52: 0.054 | W52: 0.0435 | X52: 0.039 | Y52: 0.0379 | Z52: 0.0252 | AA52: 0.0235 | AB52: 0.0224 | AC52: 0.0216 | AD52: 0.0155 | AE52: 0.0154 | AF52: 0.0153 | AG52: 0.0161 | AH52: 0.0163 | AI52: 0.0165 | AJ52: 0.0221 | AK52: 0.0226 | AL52: 0.0229
A53: 7.5 | U53: 0.0572 | V53: 0.0564 | W53: 0.0463 | X53: 0.0418 | Y53: 0.0407 | Z53: 0.0263 | AA53: 0.0252 | AB53: 0.024 | AC53: 0.023 | AD53: 0.0157 | AE53: 0.0155 | AF53: 0.0154 | AG53: 0.0154 | AH53: 0.0156 | AI53: 0.0157 | AJ53: 0.0208 | AK53: 0.0212 | AL53: 0.0215
A54: 7.75 | W54: 0.0491 | X54: 0.0446 | Y54: 0.0434 | Z54: 0.0285 | AA54: 0.0271 | AB54: 0.0257 | AC54: 0.0246 | AD54: 0.016 | AE54: 0.0158 | AF54: 0.0156 | AG54: 0.0148 | AH54: 0.015 | AI54: 0.0151 | AJ54: 0.0195 | AK54: 0.0199 | AL54: 0.0202
A55: 8 | W55: 0.0517 | X55: 0.0473 | Y55: 0.0461 | Z55: 0.031 | AA55: 0.0291 | AB55: 0.0276 | AC55: 0.0264 | AD55: 0.0166 | AE55: 0.0163 | AF55: 0.016 | AG55: 0.0144 | AH55: 0.0145 | AI55: 0.0146 | AJ55: 0.0184 | AK55: 0.0187 | AL55: 0.019
A56: 8.25 | W56: 0.054 | X56: 0.0498 | Y56: 0.0487 | Z56: 0.0335 | AA56: 0.0312 | AB56: 0.0296 | AC56: 0.0283 | AD56: 0.0172 | AE56: 0.0169 | AF56: 0.0165 | AG56: 0.0142 | AH56: 0.0142 | AI56: 0.0142 | AJ56: 0.0174 | AK56: 0.0177 | AL56: 0.0179
A57: 8.5 | W57: 0.056 | X57: 0.0522 | Y57: 0.0511 | Z57: 0.0349 | AA57: 0.0334 | AB57: 0.0317 | AC57: 0.0303 | AD57: 0.018 | AE57: 0.0177 | AF57: 0.0172 | AG57: 0.0141 | AH57: 0.014 | AI57: 0.014 | AJ57: 0.0164 | AK57: 0.0168 | AL57: 0.017
A58: 8.75 | X58: 0.0543 | Y58: 0.0534 | Z58: 0.0376 | AA58: 0.0357 | AB58: 0.0338 | AC58: 0.0324 | AD58: 0.019 | AE58: 0.0186 | AF58: 0.018 | AG58: 0.0141 | AH58: 0.014 | AI58: 0.0139 | AJ58: 0.0156 | AK58: 0.0159 | AL58: 0.0161
A59: 9 | Y59: 0.0553 | Z59: 0.0403 | AA59: 0.038 | AB59: 0.0361 | AC59: 0.0346 | AD59: 0.0201 | AE59: 0.0196 | AF59: 0.019 | AG59: 0.0143 | AH59: 0.0141 | AI59: 0.014 | AJ59: 0.0149 | AK59: 0.0152 | AL59: 0.0153
A60: 9.25 | Z60: 0.043 | AA60: 0.0402 | AB60: 0.0383 | AC60: 0.0368 | AD60: 0.0213 | AE60: 0.0208 | AF60: 0.0201 | AG60: 0.0146 | AH60: 0.0143 | AI60: 0.0141 | AJ60: 0.0143 | AK60: 0.0145 | AL60: 0.0146
A61: 9.5 | Z61: 0.0443 | AA61: 0.0425 | AB61: 0.0406 | AC61: 0.039 | AD61: 0.0226 | AE61: 0.022 | AF61: 0.0213 | AG61: 0.015 | AH61: 0.0146 | AI61: 0.0144 | AJ61: 0.0138 | AK61: 0.0139 | AL61: 0.0141
A62: 9.75 | Z62: 0.0468 | AA62: 0.0447 | AB62: 0.0428 | AC62: 0.0412 | AD62: 0.024 | AE62: 0.0234 | AF62: 0.0226 | AG62: 0.0155 | AH62: 0.015 | AI62: 0.0147 | AJ62: 0.0133 | AK62: 0.0135 | AL62: 0.0136
A63: 10 | Z63: 0.0492 | AA63: 0.0469 | AB63: 0.0449 | AC63: 0.0434 | AD63: 0.0256 | AE63: 0.0249 | AF63: 0.024 | AG63: 0.0161 | AH63: 0.0155 | AI63: 0.0152 | AJ63: 0.013 | AK63: 0.0131 | AL63: 0.0132
A64: 10.25 | Z64: 0.0514 | AA64: 0.0489 | AB64: 0.047 | AC64: 0.0455 | AD64: 0.0271 | AE64: 0.0264 | AF64: 0.0255 | AG64: 0.0168 | AH64: 0.0162 | AI64: 0.0158 | AJ64: 0.0138 | AK64: 0.0128 | AL64: 0.0128
A65: 10.5 | Z65: 0.0524 | AA65: 0.0508 | AB65: 0.049 | AC65: 0.0475 | AD65: 0.0288 | AE65: 0.028 | AF65: 0.027 | AG65: 0.0176 | AH65: 0.0169 | AI65: 0.0164 | AJ65: 0.0136 | AK65: 0.0126 | AL65: 0.0126
A66: 10.75 | Z66: 0.0542 | AA66: 0.0526 | AB66: 0.0509 | AC66: 0.0495 | AD66: 0.0305 | AE66: 0.0297 | AF66: 0.0286 | AG66: 0.0185 | AH66: 0.0176 | AI66: 0.0172 | AJ66: 0.0135 | AK66: 0.0125 | AL66: 0.0125
A67: 11 | AA67: 0.0541 | AB67: 0.0526 | AC67: 0.0513 | AD67: 0.0322 | AE67: 0.0314 | AF67: 0.0303 | AG67: 0.0194 | AH67: 0.0186 | AI67: 0.0181 | AJ67: 0.0135 | AK67: 0.0124 | AL67: 0.0124
A68: 11.25 | AB68: 0.0541 | AC68: 0.0528 | AD68: 0.034 | AE68: 0.0332 | AF68: 0.032 | AG68: 0.0205 | AH68: 0.0196 | AI68: 0.019 | AJ68: 0.0126 | AK68: 0.0125 | AL68: 0.0124
A69: 11.5 | AD69: 0.0358 | AE69: 0.0349 | AF69: 0.0338 | AG69: 0.0216 | AH69: 0.0207 | AI69: 0.02 | AJ69: 0.0128 | AK69: 0.0126 | AL69: 0.0125
A70: 11.75 | AD70: 0.0376 | AE70: 0.0367 | AF70: 0.0355 | AG70: 0.0228 | AH70: 0.0218 | AI70: 0.0211 | AJ70: 0.013 | AK70: 0.0128 | AL70: 0.0127
A71: 12 | AD71: 0.0394 | AE71: 0.0385 | AF71: 0.0373 | AG71: 0.0241 | AH71: 0.023 | AI71: 0.0223 | AJ71: 0.0134 | AK71: 0.0131 | AL71: 0.0129
A72: 12.5 | AD72: 0.0429 | AE72: 0.042 | AF72: 0.0408 | AG72: 0.0267 | AH72: 0.0255 | AI72: 0.0248 | AJ72: 0.0142 | AK72: 0.0138 | AL72: 0.0136
A73: 13 | AD73: 0.0463 | AE73: 0.0454 | AF73: 0.0442 | AG73: 0.0296 | AH73: 0.0282 | AI73: 0.0274 | AJ73: 0.0153 | AK73: 0.0148 | AL73: 0.0145
A74: 13.5 | AD74: 0.0494 | AE74: 0.0485 | AF74: 0.0474 | AG74: 0.0326 | AH74: 0.0311 | AI74: 0.0302 | AJ74: 0.0166 | AK74: 0.016 | AL74: 0.0157
A75: 14 | AD75: 0.052 | AE75: 0.0512 | AF75: 0.0502 | AG75: 0.0356 | AH75: 0.0341 | AI75: 0.0331 | AJ75: 0.0182 | AK75: 0.0175 | AL75: 0.0171
A76: 14.5 | AG76: 0.0386 | AH76: 0.037 | AI76: 0.036 | AJ76: 0.0199 | AK76: 0.0192 | AL76: 0.0187
A77: 15 | AG77: 0.0415 | AH77: 0.04 | AI77: 0.039 | AJ77: 0.0218 | AK77: 0.0209 | AL77: 0.0204
A78: 15.5 | AG78: 0.0443 | AH78: 0.0428 | AI78: 0.0418 | AJ78: 0.0239 | AK78: 0.023 | AL78: 0.0224
A79: 16 | AG79: 0.047 | AH79: 0.0455 | AI79: 0.0446 | AJ79: 0.026 | AK79: 0.025 | AL79: 0.0244
A80: 16.5 | AG80: 0.0494 | AH80: 0.048 | AI80: 0.0471 | AJ80: 0.0283 | AK80: 0.0273 | AL80: 0.0266
A81: 17 | AH81: 0.0503 | AI81: 0.0494 | AJ81: 0.0307 | AK81: 0.0296 | AL81: 0.0288
A82: 17.5 | AJ82: 0.0331 | AK82: 0.0319 | AL82: 0.0312
A83: 18 | AJ83: 0.0355 | AK83: 0.0343 | AL83: 0.0335
A84: 18.5 | AJ84: 0.0379 | AK84: 0.0366 | AL84: 0.0358
A85: 19 | AJ85: 0.0402 | AK85: 0.039 | AL85: 0.0382
A86: 19.5 | AJ86: 0.0424 | AK86: 0.0412 | AL86: 0.0404
A87: 20 | AJ87: 0.0446 | AK87: 0.0434 | AL87: 0.0426
A88: 20.5 | AJ88: 0.0466 | AK88: 0.0455 | AL88: 0.0448
A89: 21 | AJ89: 0.0485 | AK89: 0.0475 | AL89: 0.0467
A90: 21.5 | AK90: 0.0492 | AL90: 0.0485

Sheet ZFactor
A1: Supercompressibility Factors - (Z Factor)
E5: Pressure
A6: Temp | B6: 0 | C6: 20 | D6: 40 | E6: 60 | F6: 120 | G6: 180 | H6: 240 | I6: 300 | J6: 360 | K6: 420 | L6: 480 | M6: 540 | N6: 600 | O6: 660 | P6: 720 | Q6: 780 | R6: 840 | S6: 900 | T6: 960 | U6: 1020 | V6: 1080 | W6: 1140 | X6: 1200 | Y6: 1260 | Z6: 1320 | AA6: 1380 | AB6: 1440 | AC6: 1500 | AD6: 1560 | AE6: 1620 | AF6: 1680 | AG6: 1740 | AH6: 1800 | AI6: 1860 | AJ6: 1920 | AK6: 1980 | AL6: 2040 | AM6: 2100 | AN6: 2160 | AO6: 2220 | AP6: 2280 | AQ6: 2340 | AR6: 2400 | AS6: 2460 | AT6: 2520 | AU6: 2580 | AV6: 2640 | AW6: 2700 | AX6: 2760 | AY6: 2820 | AZ6: 2880 | BA6: 2940 | BB6: 3000 | BC6: 3060 | BD6: 3120 | BE6: 3180 | BF6: 3240 | BG6: 3300 | BH6: 3360 | BI6: 3420 | BJ6: 3480 | BK6: 3540 | BL6: 3600 | BM6: 3660 | BN6: 3720 | BO6: 3780 | BP6: 3840 | BQ6: 3900 | BR6: 3960 | BS6: 4020 | BT6: 4080 | BU6: 4140 | BV6: 4200 | BW6: 4260 | BX6: 4320
A7: 10 | B7: 1 | C7: 1.0022 | D7: 1.0044 | E7: 1.0066 | F7: 1.0134 | G7: 1.0204 | H7: 1.0276 | I7: 1.035 | J7: 1.0426 | K7: 1.0504 | L7: 1.0585 | M7: 1.0667 | N7: 1.0752 | O7: 1.0838 | P7: 1.0927 | Q7: 1.1018 | R7: 1.1111 | S7: 1.1205 | T7: 1.13 | U7: 1.1397 | V7: 1.1493 | W7: 1.159 | X7: 1.1685 | Y7: 1.1778 | Z7: 1.1869 | AA7: 1.1955 | AB7: 1.2037 | AC7: 1.2114 | AD7: 1.2182 | AE7: 1.2243 | AF7: 1.2296 | AG7: 1.2342 | AH7: 1.2378 | AI7: 1.2406 | AJ7: 1.2426 | AK7: 1.244 | AL7: 1.2441 | AM7: 1.2434 | AN7: 1.2422 | AO7: 1.2406 | AP7: 1.2383 | AQ7: 1.2354 | AR7: 1.2323 | AS7: 1.2288 | AT7: 1.2251 | AU7: 1.221 | AV7: 1.2167 | AW7: 1.2123 | AX7: 1.2078 | AY7: 1.203 | AZ7: 1.1981 | BA7: 1.1932 | BB7: 1.1882 | BC7: 1.1831 | BD7: 1.178 | BE7: 1.1729 | BF7: 1.1677 | BG7: 1.1625 | BH7: 1.1574 | BI7: 1.1522 | BJ7: 1.1471 | BK7: 1.1419 | BL7: 1.1368 | BM7: 1.1317 | BN7: 1.1267 | BO7: 1.1217 | BP7: 1.1167 | BQ7: 1.1118 | BR7: 1.1069 | BS7: 1.102 | BT7: 1.0972 | BU7: 1.0925 | BV7: 1.0878 | BW7: 1.0831 | BX7: 1.0785
A8: 20 | B8: 1 | C8: 1.002 | D8: 1.0041 | E8: 1.0062 | F8: 1.0125 | G8: 1.019 | H8: 1.0257 | I8: 1.0325 | J8: 1.0395 | K8: 1.0466 | L8: 1.0539 | M8: 1.0614 | N8: 1.069 | O8: 1.0768 | P8: 1.0847 | Q8: 1.0927 | R8: 1.1009 | S8: 1.1092 | T8: 1.1175 | U8: 1.1259 | V8: 1.1342 | W8: 1.1425 | X8: 1.1506 | Y8: 1.1587 | Z8: 1.1665 | AA8: 1.174 | AB8: 1.1812 | AC8: 1.1879 | AD8: 1.194 | AE8: 1.1996 | AF8: 1.2046 | AG8: 1.209 | AH8: 1.2126 | AI8: 1.2156 | AJ8: 1.218 | AK8: 1.2198 | AL8: 1.2206 | AM8: 1.2207 | AN8: 1.2204 | AO8: 1.2196 | AP8: 1.2182 | AQ8: 1.2162 | AR8: 1.2139 | AS8: 1.2114 | AT8: 1.2085 | AU8: 1.2052 | AV8: 1.2017 | AW8: 1.198 | AX8: 1.1942 | AY8: 1.1901 | AZ8: 1.1859 | BA8: 1.1816 | BB8: 1.1773 | BC8: 1.1728 | BD8: 1.1682 | BE8: 1.1636 | BF8: 1.159 | BG8: 1.1543 | BH8: 1.1496 | BI8: 1.1449 | BJ8: 1.1402 | BK8: 1.1355 | BL8: 1.1307 | BM8: 1.126 | BN8: 1.1213 | BO8: 1.1166 | BP8: 1.112 | BQ8: 1.1073 | BR8: 1.1027 | BS8: 1.0981 | BT8: 1.0936 | BU8: 1.0891 | BV8: 1.0846 | BW8: 1.0802 | BX8: 1.0758
A9: 30 | B9: 1 | C9: 1.0019 | D9: 1.0038 | E9: 1.0058 | F9: 1.0117 | G9: 1.0177 | H9: 1.0239 | I9: 1.0302 | J9: 1.0366 | K9: 1.0432 | L9: 1.0498 | M9: 1.0566 | N9: 1.0635 | O9: 1.0705 | P9: 1.0776 | Q9: 1.0848 | R9: 1.092 | S9: 1.0993 | T9: 1.1066 | U9: 1.1139 | V9: 1.1211 | W9: 1.1283 | X9: 1.1354 | Y9: 1.1424 | Z9: 1.1492 | AA9: 1.1558 | AB9: 1.1621 | AC9: 1.1681 | AD9: 1.1735 | AE9: 1.1785 | AF9: 1.1831 | AG9: 1.1872 | AH9: 1.1907 | AI9: 1.1937 | AJ9: 1.1961 | AK9: 1.1981 | AL9: 1.1993 | AM9: 1.2 | AN9: 1.2002 | AO9: 1.2001 | AP9: 1.1993 | AQ9: 1.198 | AR9: 1.1964 | AS9: 1.1946 | AT9: 1.1923 | AU9: 1.1897 | AV9: 1.1869 | AW9: 1.1839 | AX9: 1.1807 | AY9: 1.1773 | AZ9: 1.1737 | BA9: 1.17 | BB9: 1.1662 | BC9: 1.1622 | BD9: 1.1582 | BE9: 1.1541 | BF9: 1.15 | BG9: 1.1457 | BH9: 1.1415 | BI9: 1.1372 | BJ9: 1.1329 | BK9: 1.1285 | BL9: 1.1242 | BM9: 1.1198 | BN9: 1.1155 | BO9: 1.1111 | BP9: 1.1068 | BQ9: 1.1024 | BR9: 1.0981 | BS9: 1.0938 | BT9: 1.0895 | BU9: 1.0853 | BV9: 1.0811 | BW9: 1.0768 | BX9: 1.0727
A10: 40 | B10: 1 | C10: 1.0018 | D10: 1.0036 | E10: 1.0054 | F10: 1.0109 | G10: 1.0165 | H10: 1.0223 | I10: 1.0281 | J10: 1.034 | K10: 1.04 | L10: 1.0461 | M10: 1.0522 | N10: 1.0585 | O10: 1.0648 | P10: 1.0712 | Q10: 1.0776 | R10: 1.0841 | S10: 1.0906 | T10: 1.097 | U10: 1.1035 | V10: 1.1099 | W10: 1.1162 | X10: 1.1224 | Y10: 1.1285 | Z10: 1.1345 | AA10: 1.1403 | AB10: 1.1458 | AC10: 1.1511 | AD10: 1.1559 | AE10: 1.1604 | AF10: 1.1645 | AG10: 1.1683 | AH10: 1.1715 | AI10: 1.1743 | AJ10: 1.1767 | AK10: 1.1787 | AL10: 1.1802 | AM10: 1.1812 | AN10: 1.1818 | AO10: 1.1821 | AP10: 1.1818 | AQ10: 1.181 | AR10: 1.18 | AS10: 1.1787 | AT10: 1.177 | AU10: 1.1749 | AV10: 1.1727 | AW10: 1.1703 | AX10: 1.1676 | AY10: 1.1647 | AZ10: 1.1616 | BA10: 1.1585 | BB10: 1.1552 | BC10: 1.1517 | BD10: 1.1481 | BE10: 1.1445 | BF10: 1.1408 | BG10: 1.137 | BH10: 1.1331 | BI10: 1.1292 | BJ10: 1.1253 | BK10: 1.1213 | BL10: 1.1173 | BM10: 1.1133 | BN10: 1.1093 | BO10: 1.1053 | BP10: 1.1012 | BQ10: 1.0972 | BR10: 1.0932 | BS10: 1.0891 | BT10: 1.0851 | BU10: 1.0811 | BV10: 1.0771 | BW10: 1.0731 | BX10: 1.0692
A11: 50 | B11: 1 | C11: 1.0017 | D11: 1.0034 | E11: 1.0051 | F11: 1.0102 | G11: 1.0154 | H11: 1.0207 | I11: 1.0261 | J11: 1.0316 | K11: 1.0371 | L11: 1.0427 | M11: 1.0483 | N11: 1.054 | O11: 1.0598 | P11: 1.0655 | Q11: 1.0713 | R11: 1.0771 | S11: 1.0829 | T11: 1.0887 | U11: 1.0944 | V11: 1.1001 | W11: 1.1056 | X11: 1.1111 | Y11: 1.1165 | Z11: 1.1217 | AA11: 1.1268 | AB11: 1.1317 | AC11: 1.1363 | AD11: 1.1406 | AE11: 1.1446 | AF11: 1.1483 | AG11: 1.1517 | AH11: 1.1547 | AI11: 1.1574 | AJ11: 1.1597 | AK11: 1.1616 | AL11: 1.1632 | AM11: 1.1644 | AN11: 1.1652 | AO11: 1.1657 | AP11: 1.1658 | AQ11: 1.1654 | AR11: 1.1647 | AS11: 1.1638 | AT11: 1.1626 | AU11: 1.161 | AV11: 1.1592 | AW11: 1.1572 | AX11: 1.1551 | AY11: 1.1526 | AZ11: 1.15 | BA11: 1.1473 | BB11: 1.1444 | BC11: 1.1414 | BD11: 1.1382 | BE11: 1.135 | BF11: 1.1317 | BG11: 1.1283 | BH11: 1.1248 | BI11: 1.1213 | BJ11: 1.1177 | BK11: 1.1141 | BL11: 1.1104 | BM11: 1.1067 | BN11: 1.103 | BO11: 1.0993 | BP11: 1.0955 | BQ11: 1.0918 | BR11: 1.088 | BS11: 1.0842 | BT11: 1.0805 | BU11: 1.0767 | BV11: 1.0729 | BW11: 1.0692 | BX11: 1.0654
A12: 60 | B12: 1 | C12: 1.0016 | D12: 1.0031 | E12: 1.0047 | F12: 1.0095 | G12: 1.0144 | H12: 1.0193 | I12: 1.0243 | J12: 1.0294 | K12: 1.0344 | L12: 1.0396 | M12: 1.0447 | N12: 1.0499 | O12: 1.0552 | P12: 1.0604 | Q12: 1.0656 | R12: 1.0709 | S12: 1.0761 | T12: 1.0812 | U12: 1.0864 | V12: 1.0914 | W12: 1.0964 | X12: 1.1013 | Y12: 1.106 | Z12: 1.1107 | AA12: 1.1151 | AB12: 1.1194 | AC12: 1.1235 | AD12: 1.1273 | AE12: 1.1309 | AF12: 1.1343 | AG12: 1.1373 | AH12: 1.14 | AI12: 1.1425 | AJ12: 1.1446 | AK12: 1.1465 | AL12: 1.148 | AM12: 1.1493 | AN12: 1.1503 | AO12: 1.1508 | AP12: 1.1513 | AQ12: 1.1511 | AR12: 1.1508 | AS12: 1.1502 | AT12: 1.1493 | AU12: 1.148 | AV12: 1.1466 | AW12: 1.145 | AX12: 1.1432 | AY12: 1.1411 | AZ12: 1.1388 | BA12: 1.1365 | BB12: 1.1341 | BC12: 1.1314 | BD12: 1.1286 | BE12: 1.1257 | BF12: 1.1228 | BG12: 1.1197 | BH12: 1.1166 | BI12: 1.1134 | BJ12: 1.1102 | BK12: 1.1069 | BL12: 1.1035 | BM12: 1.1001 | BN12: 1.0967 | BO12: 1.0933 | BP12: 1.0898 | BQ12: 1.0863 | BR12: 1.0828 | BS12: 1.0793 | BT12: 1.0757 | BU12: 1.0722 | BV12: 1.0686 | BW12: 1.0651 | BX12: 1.0615
A13: 70 | B13: 1 | C13: 1.0015 | D13: 1.0029 | E13: 1.0044 | F13: 1.0089 | G13: 1.0135 | H13: 1.018 | I13: 1.0227 | J13: 1.0274 | K13: 1.0321 | L13: 1.0368 | M13: 1.0416 | N13: 1.0463 | O13: 1.0511 | P13: 1.0558 | Q13: 1.0606 | R13: 1.0653 | S13: 1.07 | T13: 1.0747 | U13: 1.0793 | V13: 1.0838 | W13: 1.0882 | X13: 1.0926 | Y13: 1.0968 | Z13: 1.1009 | AA13: 1.1049 | AB13: 1.1087 | AC13: 1.1123 | AD13: 1.1157 | AE13: 1.1189 | AF13: 1.1219 | AG13: 1.1247 | AH13: 1.1272 | AI13: 1.1294 | AJ13: 1.1315 | AK13: 1.1332 | AL13: 1.1347 | AM13: 1.136 | AN13: 1.137 | AO13: 1.1376 | AP13: 1.1382 | AQ13: 1.1383 | AR13: 1.1381 | AS13: 1.1377 | AT13: 1.137 | AU13: 1.136 | AV13: 1.1349 | AW13: 1.1336 | AX13: 1.1321 | AY13: 1.1303 | AZ13: 1.1284 | BA13: 1.1263 | BB13: 1.1242 | BC13: 1.1218 | BD13: 1.1194 | BE13: 1.1168 | BF13: 1.1143 | BG13: 1.1115 | BH13: 1.1086 | BI13: 1.1058 | BJ13: 1.1028 | BK13: 1.0998 | BL13: 1.0967 | BM13: 1.0936 | BN13: 1.0905 | BO13: 1.0873 | BP13: 1.084 | BQ13: 1.0808 | BR13: 1.0775 | BS13: 1.0743 | BT13: 1.0709 | BU13: 1.0676 | BV13: 1.0643 | BW13: 1.061 | BX13: 1.0576
A14: 80 | B14: 1 | C14: 1.0014 | D14: 1.0028 | E14: 1.0042 | F14: 1.0084 | G14: 1.0126 | H14: 1.0169 | I14: 1.0212 | J14: 1.0255 | K14: 1.0299 | L14: 1.0342 | M14: 1.0386 | N14: 1.043 | O14: 1.0473 | P14: 1.0517 | Q14: 1.056 | R14: 1.0603 | S14: 1.0646 | T14: 1.0688 | U14: 1.073 | V14: 1.0771 | W14: 1.0811 | X14: 1.085 | Y14: 1.0888 | Z14: 1.0925 | AA14: 1.096 | AB14: 1.0994 | AC14: 1.1026 | AD14: 1.1057 | AE14: 1.1085 | AF14: 1.1112 | AG14: 1.1137 | AH14: 1.116 | AI14: 1.1181 | AJ14: 1.12 | AK14: 1.1216 | AL14: 1.123 | AM14: 1.1243 | AN14: 1.1253 | AO14: 1.1258 | AP14: 1.1265 | AQ14: 1.1267 | AR14: 1.1266 | AS14: 1.1264 | AT14: 1.1259 | AU14: 1.1251 | AV14: 1.1241 | AW14: 1.123 | AX14: 1.1218 | AY14: 1.1202 | AZ14: 1.1186 | BA14: 1.1169 | BB14: 1.115 | BC14: 1.1129 | BD14: 1.1107 | BE14: 1.1084 | BF14: 1.1061 | BG14: 1.1036 | BH14: 1.101 | BI14: 1.0984 | BJ14: 1.0958 | BK14: 1.093 | BL14: 1.0902 | BM14: 1.0873 | BN14: 1.0844 | BO14: 1.0815 | BP14: 1.0785 | BQ14: 1.0755 | BR14: 1.0725 | BS14: 1.0694 | BT14: 1.0663 | BU14: 1.0632 | BV14: 1.0601 | BW14: 1.0569 | BX14: 1.0538
A15: 90 | B15: 1 | C15: 1.0013 | D15: 1.0026 | E15: 1.0039 | F15: 1.0078 | G15: 1.0118 | H15: 1.0158 | I15: 1.0198 | J15: 1.0238 | K15: 1.0278 | L15: 1.0318 | M15: 1.0359 | N15: 1.0399 | O15: 1.0439 | P15: 1.0479 | Q15: 1.0518 | R15: 1.0558 | S15: 1.0596 | T15: 1.0635 | U15: 1.0673 | V15: 1.071 | W15: 1.0746 | X15: 1.0781 | Y15: 1.0816 | Z15: 1.0849 | AA15: 1.0881 | AB15: 1.0911 | AC15: 1.094 | AD15: 1.0968 | AE15: 1.0994 | AF15: 1.1019 | AG15: 1.1042 | AH15: 1.1063 | AI15: 1.1082 | AJ15: 1.1099 | AK15: 1.1114 | AL15: 1.1128 | AM15: 1.1139 | AN15: 1.1149 | AO15: 1.1154 | AP15: 1.1161 | AQ15: 1.1163 | AR15: 1.1163 | AS15: 1.1161 | AT15: 1.1158 | AU15: 1.1151 | AV15: 1.1143 | AW15: 1.1134 | AX15: 1.1123 | AY15: 1.111 | AZ15: 1.1096 | BA15: 1.108 | BB15: 1.1064 | BC15: 1.1045 | BD15: 1.1026 | BE15: 1.1005 | BF15: 1.0984 | BG15: 1.0962 | BH15: 1.0939 | BI15: 1.0915 | BJ15: 1.0891 | BK15: 1.0866 | BL15: 1.084 | BM15: 1.0813 | BN15: 1.0787 | BO15: 1.0759 | BP15: 1.0732 | BQ15: 1.0704 | BR15: 1.0675 | BS15: 1.0647 | BT15: 1.0618 | BU15: 1.0589 | BV15: 1.056 | BW15: 1.053 | BX15: 1.0501
A16: 100 | B16: 1 | C16: 1.0012 | D16: 1.0024 | E16: 1.0036 | F16: 1.0073 | G16: 1.011 | H16: 1.0147 | I16: 1.0185 | J16: 1.0222 | K16: 1.0259 | L16: 1.0296 | M16: 1.0333 | N16: 1.037 | O16: 1.0407 | P16: 1.0444 | Q16: 1.048 | R16: 1.0516 | S16: 1.0551 | T16: 1.0586 | U16: 1.062 | V16: 1.0654 | W16: 1.0687 | X16: 1.0719 | Y16: 1.075 | Z16: 1.078 | AA16: 1.0809 | AB16: 1.0837 | AC16: 1.0863 | AD16: 1.0888 | AE16: 1.0912 | AF16: 1.0934 | AG16: 1.0955 | AH16: 1.0974 | AI16: 1.0991 | AJ16: 1.1007 | AK16: 1.1021 | AL16: 1.1034 | AM16: 1.1044 | AN16: 1.1053 | AO16: 1.1058 | AP16: 1.1065 | AQ16: 1.1067 | AR16: 1.1067 | AS16: 1.1066 | AT16: 1.1063 | AU16: 1.1058 | AV16: 1.1051 | AW16: 1.1043 | AX16: 1.1034 | AY16: 1.1022 | AZ16: 1.1009 | BA16: 1.0996 | BB16: 1.0981 | BC16: 1.0964 | BD16: 1.0947 | BE16: 1.0929 | BF16: 1.091 | BG16: 1.0889 | BH16: 1.0868 | BI16: 1.0847 | BJ16: 1.0825 | BK16: 1.0801 | BL16: 1.0778 | BM16: 1.0753 | BN16: 1.0729 | BO16: 1.0704 | BP16: 1.0678 | BQ16: 1.0652 | BR16: 1.0626 | BS16: 1.0599 | BT16: 1.0572 | BU16: 1.0545 | BV16: 1.0518 | BW16: 1.049 | BX16: 1.0462
A17: 110 | B17: 1 | C17: 1.0011 | D17: 1.0023 | E17: 1.0034 | F17: 1.0069 | G17: 1.0103 | H17: 1.0138 | I17: 1.0173 | J17: 1.0207 | K17: 1.0242 | L17: 1.0276 | M17: 1.031 | N17: 1.0344 | O17: 1.0378 | P17: 1.0411 | Q17: 1.0445 | R17: 1.0478 | S17: 1.051 | T17: 1.0542 | U17: 1.0573 | V17: 1.0603 | W17: 1.0633 | X17: 1.0662 | Y17: 1.069 | Z17: 1.0717 | AA17: 1.0743 | AB17: 1.0769 | AC17: 1.0793 | AD17: 1.0815 | AE17: 1.0837 | AF17: 1.0857 | AG17: 1.0876 | AH17: 1.0893 | AI17: 1.0909 | AJ17: 1.0923 | AK17: 1.0936 | AL17: 1.0947 | AM17: 1.0957 | AN17: 1.0964 | AO17: 1.0969 | AP17: 1.0975 | AQ17: 1.0977 | AR17: 1.0977 | AS17: 1.0976 | AT17: 1.0974 | AU17: 1.0969 | AV17: 1.0964 | AW17: 1.0957 | AX17: 1.0948 | AY17: 1.0938 | AZ17: 1.0927 | BA17: 1.0914 | BB17: 1.0901 | BC17: 1.0886 | BD17: 1.0871 | BE17: 1.0854 | BF17: 1.0837 | BG17: 1.0819 | BH17: 1.0799 | BI17: 1.078 | BJ17: 1.076 | BK17: 1.0738 | BL17: 1.0716 | BM17: 1.0694 | BN17: 1.0671 | BO17: 1.0648 | BP17: 1.0624 | BQ17: 1.06 | BR17: 1.0576 | BS17: 1.0551 | BT17: 1.0526 | BU17: 1.05 | BV17: 1.0474 | BW17: 1.0449 | BX17: 1.0422
A18: 120 | B18: 1 | C18: 1.0011 | D18: 1.0021 | E18: 1.0032 | F18: 1.0064 | G18: 1.0097 | H18: 1.0129 | I18: 1.0161 | J18: 1.0193 | K18: 1.0225 | L18: 1.0257 | M18: 1.0289 | N18: 1.032 | O18: 1.0351 | P18: 1.0382 | Q18: 1.0413 | R18: 1.0443 | S18: 1.0472 | T18: 1.0501 | U18: 1.0529 | V18: 1.0557 | W18: 1.0584 | X18: 1.061 | Y18: 1.0635 | Z18: 1.066 | AA18: 1.0684 | AB18: 1.0706 | AC18: 1.0728 | AD18: 1.0749 | AE18: 1.0768 | AF18: 1.0786 | AG18: 1.0803 | AH18: 1.0819 | AI18: 1.0833 | AJ18: 1.0846 | AK18: 1.0858 | AL18: 1.0868 | AM18: 1.0876 | AN18: 1.0883 | AO18: 1.0887 | AP18: 1.0892 | AQ18: 1.0893 | AR18: 1.0894 | AS18: 1.0893 | AT18: 1.0891 | AU18: 1.0887 | AV18: 1.0881 | AW18: 1.0875 | AX18: 1.0868 | AY18: 1.0858 | AZ18: 1.0848 | BA18: 1.0837 | BB18: 1.0825 | BC18: 1.0812 | BD18: 1.0798 | BE18: 1.0783 | BF18: 1.0767 | BG18: 1.075 | BH18: 1.0733 | BI18: 1.0714 | BJ18: 1.0696 | BK18: 1.0676 | BL18: 1.0656 | BM18: 1.0636 | BN18: 1.0615 | BO18: 1.0593 | BP18: 1.0571 | BQ18: 1.0549 | BR18: 1.0526 | BS18: 1.0503 | BT18: 1.0479 | BU18: 1.0455 | BV18: 1.0431 | BW18: 1.0407 | BX18: 1.0382
A19: 130 | B19: 1 | C19: 1.001 | D19: 1.002 | E19: 1.003 | F19: 1.006 | G19: 1.0091 | H19: 1.0121 | I19: 1.0151 | J19: 1.0181 | K19: 1.021 | L19: 1.024 | M19: 1.0269 | N19: 1.0298 | O19: 1.0327 | P19: 1.0355 | Q19: 1.0383 | R19: 1.041 | S19: 1.0437 | T19: 1.0463 | U19: 1.0489 | V19: 1.0514 | W19: 1.0539 | X19: 1.0563 | Y19: 1.0586 | Z19: 1.0608 | AA19: 1.0629 | AB19: 1.065 | AC19: 1.0669 | AD19: 1.0688 | AE19: 1.0705 | AF19: 1.0721 | AG19: 1.0737 | AH19: 1.0751 | AI19: 1.0764 | AJ19: 1.0776 | AK19: 1.0786 | AL19: 1.0795 | AM19: 1.0802 | AN19: 1.0808 | AO19: 1.0811 | AP19: 1.0815 | AQ19: 1.0817 | AR19: 1.0817 | AS19: 1.0816 | AT19: 1.0814 | AU19: 1.081 | AV19: 1.0805 | AW19: 1.0799 | AX19: 1.0792 | AY19: 1.0784 | AZ19: 1.0775 | BA19: 1.0765 | BB19: 1.0754 | BC19: 1.0742 | BD19: 1.0729 | BE19: 1.0715 | BF19: 1.0701 | BG19: 1.0685 | BH19: 1.0669 | BI19: 1.0652 | BJ19: 1.0635 | BK19: 1.0617 | BL19: 1.0598 | BM19: 1.0579 | BN19: 1.056 | BO19: 1.054 | BP19: 1.0519 | BQ19: 1.0498 | BR19: 1.0477 | BS19: 1.0456 | BT19: 1.0434 | BU19: 1.0411 | BV19: 1.0389 | BW19: 1.0366 | BX19: 1.0342
A20: 140 | B20: 1 | C20: 1.0009 | D20: 1.0019 | E20: 1.0028 | F20: 1.0056 | G20: 1.0085 | H20: 1.0113 | I20: 1.0141 | J20: 1.0168 | K20: 1.0196 | L20: 1.0223 | M20: 1.0251 | N20: 1.0277 | O20: 1.0304 | P20: 1.033 | Q20: 1.0355 | R20: 1.038 | S20: 1.0405 | T20: 1.0429 | U20: 1.0452 | V20: 1.0475 | W20: 1.0498 | X20: 1.0519 | Y20: 1.054 | Z20: 1.056 | AA20: 1.058 | AB20: 1.0598 | AC20: 1.0615 | AD20: 1.0632 | AE20: 1.0648 | AF20: 1.0663 | AG20: 1.0676 | AH20: 1.0689 | AI20: 1.0701 | AJ20: 1.0711 | AK20: 1.0721 | AL20: 1.0728 | AM20: 1.0734 | AN20: 1.0738 | AO20: 1.0741 | AP20: 1.0745 | AQ20: 1.0746 | AR20: 1.0745 | AS20: 1.0743 | AT20: 1.074 | AU20: 1.0737 | AV20: 1.0733 | AW20: 1.0728 | AX20: 1.0722 | AY20: 1.0715 | AZ20: 1.0706 | BA20: 1.0697 | BB20: 1.0687 | BC20: 1.0676 | BD20: 1.0663 | BE20: 1.065 | BF20: 1.0637 | BG20: 1.0623 | BH20: 1.0609 | BI20: 1.0593 | BJ20: 1.0577 | BK20: 1.056 | BL20: 1.0543 | BM20: 1.0525 | BN20: 1.0507 | BO20: 1.0488 | BP20: 1.0469 | BQ20: 1.0449 | BR20: 1.043 | BS20: 1.041 | BT20: 1.0389 | BU20: 1.0368 | BV20: 1.0347 | BW20: 1.0325 | BX20: 1.0303
A21: 150 | B21: 1 | C21: 1.0009 | D21: 1.0017 | E21: 1.0026 | F21: 1.0053 | G21: 1.0079 | H21: 1.0106 | I21: 1.0132 | J21: 1.0158 | K21: 1.0183 | L21: 1.0209 | M21: 1.0234 | N21: 1.0258 | O21: 1.0283 | P21: 1.0306 | Q21: 1.033 | R21: 1.0353 | S21: 1.0375 | T21: 1.0397 | U21: 1.0419 | V21: 1.044 | W21: 1.046 | X21: 1.0479 | Y21: 1.0498 | Z21: 1.0516 | AA21: 1.0534 | AB21: 1.055 | AC21: 1.0566 | AD21: 1.0581 | AE21: 1.0595 | AF21: 1.0609 | AG21: 1.0621 | AH21: 1.0632 | AI21: 1.0643 | AJ21: 1.0652 | AK21: 1.066 | AL21: 1.0667 | AM21: 1.0671 | AN21: 1.0675 | AO21: 1.0677 | AP21: 1.068 | AQ21: 1.068 | AR21: 1.0679 | AS21: 1.0677 | AT21: 1.0674 | AU21: 1.0671 | AV21: 1.0667 | AW21: 1.0663 | AX21: 1.0657 | AY21: 1.065 | AZ21: 1.0642 | BA21: 1.0633 | BB21: 1.0624 | BC21: 1.0614 | BD21: 1.0602 | BE21: 1.059 | BF21: 1.0578 | BG21: 1.0565 | BH21: 1.0551 | BI21: 1.0536 | BJ21: 1.0521 | BK21: 1.0505 | BL21: 1.049 | BM21: 1.0473 | BN21: 1.0457 | BO21: 1.0439 | BP21: 1.0421 | BQ21: 1.0403 | BR21: 1.0384 | BS21: 1.0365 | BT21: 1.0346 | BU21: 1.0326 | BV21: 1.0306 | BW21: 1.0285 | BX21: 1.0265
A22: 160 | B22: 1 | C22: 1.0008 | D22: 1.0016 | E22: 1.0025 | F22: 1.005 | G22: 1.0074 | H22: 1.0099 | I22: 1.0123 | J22: 1.0147 | K22: 1.0171 | L22: 1.0194 | M22: 1.0218 | N22: 1.024 | O22: 1.0263 | P22: 1.0285 | Q22: 1.0306 | R22: 1.0327 | S22: 1.0348 | T22: 1.0368 | U22: 1.0387 | V22: 1.0406 | W22: 1.0425 | X22: 1.0443 | Y22: 1.046 | Z22: 1.0476 | AA22: 1.0492 | AB22: 1.0507 | AC22: 1.0521 | AD22: 1.0534 | AE22: 1.0547 | AF22: 1.0559 | AG22: 1.057 | AH22: 1.058 | AI22: 1.0589 | AJ22: 1.0597 | AK22: 1.0605 | AL22: 1.061 | AM22: 1.0614 | AN22: 1.0617 | AO22: 1.0619 | AP22: 1.062 | AQ22: 1.0621 | AR22: 1.0619 | AS22: 1.0617 | AT22: 1.0614 | AU22: 1.0611 | AV22: 1.0607 | AW22: 1.0603 | AX22: 1.0597 | AY22: 1.059 | AZ22: 1.0583 | BA22: 1.0575 | BB22: 1.0566 | BC22: 1.0556 | BD22: 1.0545 | BE22: 1.0534 | BF22: 1.0522 | BG22: 1.051 | BH22: 1.0497 | BI22: 1.0484 | BJ22: 1.0469 | BK22: 1.0455 | BL22: 1.044 | BM22: 1.0424 | BN22: 1.0409 | BO22: 1.0392 | BP22: 1.0375 | BQ22: 1.0358 | BR22: 1.034 | BS22: 1.0322 | BT22: 1.0304 | BU22: 1.0285 | BV22: 1.0266 | BW22: 1.0247 | BX22: 1.0228
A23: 170 | B23: 1 | C23: 1.0007 | D23: 1.0015 | E23: 1.0023 | F23: 1.0046 | G23: 1.007 | H23: 1.0093 | I23: 1.0115 | J23: 1.0138 | K23: 1.016 | L23: 1.0182 | M23: 1.0203 | N23: 1.0224 | O23: 1.0245 | P23: 1.0265 | Q23: 1.0285 | R23: 1.0304 | S23: 1.0323 | T23: 1.0341 | U23: 1.0359 | V23: 1.0376 | W23: 1.0393 | X23: 1.0409 | Y23: 1.0424 | Z23: 1.0439 | AA23: 1.0453 | AB23: 1.0467 | AC23: 1.0479 | AD23: 1.0491 | AE23: 1.0503 | AF23: 1.0513 | AG23: 1.0523 | AH23: 1.0532 | AI23: 1.054 | AJ23: 1.0547 | AK23: 1.0554 | AL23: 1.0558 | AM23: 1.0561 | AN23: 1.0564 | AO23: 1.0566 | AP23: 1.0566 | AQ23: 1.0566 | AR23: 1.0565 | AS23: 1.0563 | AT23: 1.056 | AU23: 1.0557 | AV23: 1.0553 | AW23: 1.0548 | AX23: 1.0543 | AY23: 1.0536 | AZ23: 1.0529 | BA23: 1.0521 | BB23: 1.0513 | BC23: 1.0503 | BD23: 1.0493 | BE23: 1.0483 | BF23: 1.0471 | BG23: 1.046 | BH23: 1.0448 | BI23: 1.0434 | BJ23: 1.0421 | BK23: 1.0407 | BL23: 1.0393 | BM23: 1.0378 | BN23: 1.0364 | BO23: 1.0348 | BP23: 1.0332 | BQ23: 1.0315 | BR23: 1.0299 | BS23: 1.0282 | BT23: 1.0264 | BU23: 1.0246 | BV23: 1.0228 | BW23: 1.021 | BX23: 1.0191

Sheet Meter runs
B1: Diff Range | C1: SG | D1: Temp | E1: Diff Element Range | F1: D | G1: Pres Element Range | H1: d
A2: ADIB/1-M61 | B2: 147 | C2: 0.65 | D2: 84 | E2: 100 | F2: 6.065 | G2: 500 | H2: 0.5
A3: ADIB/1-M62 | B3: 147 | C3: 0.65 | D3: 84 | E3: 250 | F3: 6.065 | G3: 500 | H3: 0.5
A4: ADIB/1-M71 | B4: 39 | C4: 0.66 | D4: 103 | E4: 100 | F4: 6.065 | G4: 300 | H4: 0.5
A5: ADIB/1-M72 | B5: 39 | C5: 0.62 | D5: 103 | E5: 300 | F5: 6.065 | G5: 100 | H5: 0.5
A6: AFAM/1-05 | B6: 520 | C6: 0.689 | D6: 88 | E6: 100 | F6: 4.026 | G6: 2538 | H6: 2.25
A7: AFAM/1-05A
A8: AFAM/1-11 | B8: 520 | C8: 0.625 | D8: 78 | E8: 100 | F8: 4.026 | G8: 2000 | H8: 2.5
A9: AFAM/1-FAG | B9: 400 | C9: 0.85 | D9: 80 | E9: 50 | F9: 3.068 | G9: 1000
A10: AFAM/1-FGG | B10: 400 | C10: 0.85 | D10: 80 | E10: 50 | F10: 3.068 | G10: 1000
A11: AFAM/GP-13 | B11: 350 | C11: 0.662 | D11: 85 | E11: 50 | F11: 2.067 | G11: 250 | H11: 0.75
A12: AFAM/GP-14 | B12: 124 | C12: 0.662 | D12: 98 | E12: 50 | F12: 2.067 | G12: 250 | H12: 0.75
A13: AFAM/GP-15 | B13: 114 | C13: 0.662 | D13: 98 | E13: 50 | F13: 2.067 | G13: 250 | H13: 0.75
A14: AFAM/GP-18 | B14: 370 | C14: 0.689 | D14: 78 | E14: 300 | F14: 7.981 | G14: 2573 | H14: 5.5
A15: AFAM/GP-19 | B15: 360 | C15: 0.689 | D15: 78 | E15: 200 | F15: 7.981 | G15: 1500 | H15: 5.5
A16: AFAM/GP-20 | B16: 350 | C16: 0.689 | D16: 78 | E16: 100 | F16: 7.981 | G16: 1500 | H16: 5.5
A17: AFAM/GP-48 | B17: 450 | C17: 0.662 | D17: 112 | E17: 100 | F17: 6.065 | G17: 2000 | H17: 4
A18: AFAM/GP-49 | B18: 450 | C18: 0.662 | D18: 106 | E18: 100 | F18: 6.065 | G18: 1450 | H18: 4
A19: AFAM/GP-50 | B19: 463 | C19: 0.662 | D19: 108 | E19: 100 | F19: 6.065 | G19: 1200 | H19: 3.5
A20: AGBD/1-M6 | B20: 140 | C20: 0.66 | D20: 84 | E20: 250 | F20: 6.065 | G20: 300 | H20: 0.5
A21: AGBD/1-M7 | B21: 84 | C21: 0.72 | D21: 103 | E21: 100 | F21: 6.065 | G21: 100 | H21: 0.5
A22: AGBD/1-T1 | B22: 84 | C22: 0.65 | D22: 168 | E22: 100 | F22: 6.065 | G22: 1500 | H22: 0.5
A23: AGBD/1-T2 | B23: 84 | C23: 0.65 | D23: 168 | E23: 100 | F23: 6.065 | G23: 1500 | H23: 0.5
A24: AGBD/2-M6 | B24: 147 | C24: 0.6 | D24: 84 | E24: 100 | F24: 6.065 | G24: 300 | H24: 0.5
A25: AGBD/2-M71 | B25: 39 | C25: 0.62 | D25: 103 | E25: 100 | F25: 6.065 | G25: 100 | H25: 0.5
A26: AGBD/2-M72 | B26: 39 | C26: 0.62 | D26: 103 | E26: 100 | F26: 6.065 | G26: 100 | H26: 0.5
A27: AGBD/2-M73 | B27: 39 | C27: 0.62 | D27: 103 | E27: 100 | F27: 6.065 | G27: 100 | H27: 0.5
A28: AGBD/2-T1 | B28: 147 | C28: 0.65 | D28: 84 | E28: 100 | F28: 6.065 | G28: 1500 | H28: 0.5
A29: AGBD/2-T2 | B29: 147 | C29: 0.65 | D29: 84 | E29: 100 | F29: 6.065 | G29: 1500 | H29: 0.5
A30: AGBD/AG-68 | B30: 899 | C30: 0.65 | D30: 86 | E30: 100 | F30: 4.026 | G30: 1 | H30: 2.5
A31: AGBD/CP-42 | B31: 950 | C31: 0.683 | D31: 86 | E31: 200 | F31: 2.067 | G31: 1450
A32: AGBD/CP-43 | B32: 950 | C32: 0.683 | D32: 86 | E32: 100 | F32: 3.826 | G32: 1450
A33: AHIA/1-M6 | B33: 147 | C33: 0.67 | D33: 84 | E33: 100 | F33: 6.065 | G33: 300 | H33: 0.5
A34: AHIA/1-M7 | B34: 39 | C34: 0.74 | D34: 103 | E34: 100 | F34: 6.065 | G34: 100 | H34: 0.5
A35: AHIA/1-T1 | B35: 147 | C35: 0.65 | D35: 84 | E35: 100 | F35: 6.065 | G35: 1500 | H35: 0.5
A36: ALAK/1-M6 | B36: 147 | C36: 0.65 | D36: 84 | E36: 100 | F36: 6.065 | G36: 500 | H36: 2.5
A37: ALAK/1-M7 | B37: 39 | C37: 0.65 | D37: 103 | E37: 100 | F37: 6.065 | G37: 1500 | H37: 0.5
A38: ALAK/1-T1 | B38: 147 | C38: 0.65 | D38: 84 | E38: 100 | F38: 6.065 | G38: 500 | H38: 2.75
A39: ALAK/GP-20 | B39: 860 | C39: 0.648 | D39: 85 | E39: 400 | F39: 14.688 | G39: 1450 | H39: 4.75
A40: ALAK/GP-23 | B40: 860 | C40: 0.648 | D40: 79 | E40: 150 | F40: 14.688 | G40: 2000 | H40: 6
A41: APAR/1-06 | B41: 180 | C41: 0.674 | D41: 78 | E41: 100 | F41: 6.065 | G41: 400 | H41: 2.5
A42: APAR/1-06A
A43: APAR/1-24 | B43: 110 | C43: 0.674 | D43: 78 | E43: 100 | F43: 4.026 | G43: 250 | H43: 3
A44: APAR/1-24A | B44: 110 | C44: 0.674 | D44: 78 | E44: 100 | F44: 4.026 | G44: 500 | H44: 2.5
A45: APAR/1-26 | B45: 175 | C45: 0.674 | D45: 78 | E45: 100 | F45: 4.026 | G45: 400 | H45: 1.25
A46: APAR/1-26A | B46: 175 | C46: 0.674 | D46: 78 | E46: 100 | F46: 4.026 | G46: 400 | H46: 1.5
A47: APAR/1-M6 | B47: 147 | C47: 0.65 | D47: 84 | E47: 100 | F47: 6.065 | G47: 1500 | H47: 0.5
A48: APAR/1-N81 | B48: 120 | C48: 0.7 | D48: 70 | E48: 100 | F48: 6.065 | G48: 500 | H48: 3.5
A49: APAR/1-T1 | B49: 147 | C49: 0.65 | D49: 84 | E49: 100 | F49: 6.065 | G49: 1500 | H49: 0.5
A50: ASSA/1-M6 | B50: 147 | C50: 0.65 | D50: 84 | E50: 100 | F50: 6.065 | G50: 1200 | H50: 0.5
A51: ASSA/1-M7 | B51: 39 | C51: 0.74 | D51: 103 | E51: 100 | F51: 6.065 | G51: 1200 | H51: 0.5
A52: ASSA/1-T1 | B52: 147 | C52: 0.65 | D52: 84 | E52: 100 | F52: 6.065 | G52: 1500 | H52: 0.5
A53: AWOB/1-M5 | B53: 147 | C53: 0.65 | D53: 84 | E53: 100 | F53: 6.065 | G53: 1500 | H53: 0.5
A54: AWOB/1-M6 | B54: 147 | C54: 0.65 | D54: 64 | E54: 100 | F54: 6.065 | G54: 1500 | H54: 3.75
A55: AWOB/1-M7 | B55: 39 | C55: 0.65 | D55: 50 | E55: 100 | F55: 6.065 | G55: 200 | H55: 2
A56: AWOB/1-T1 | B56: 147 | C56: 0.65 | D56: 64 | E56: 100 | F56: 6.065 | G56: 500 | H56: 3.75
A57: BOMU/1-06 | B57: 180 | C57: 0.722 | D57: 90 | E57: 100 | F57: 10.02 | G57: 500 | H57: 5.25
A58: BOMU/1-06A
A59: BOMU/1-07 | B59: 45 | C59: 0.722 | D59: 65 | E59: 100 | F59: 10.02 | G59: 100 | H59: 5
A60: BOMU/1-07A
A61: BOMU/1-12 | B61: 180 | C61: 0.683 | D61: 96 | E61: 100 | F61: 7.981 | G61: 400 | H61: 3.25
A62: BOMU/1-22 | B62: 175 | C62: 0.683 | D62: 76 | E62: 100 | F62: 6.065 | G62: 400 | H62: 3.25
A63: BOMU/1-37 | B63: 180 | C63: 0.683 | D63: 96 | E63: 100 | F63: 10.02 | G63: 500 | H63: 5.25
A64: BOMU/1-38 | B64: 45 | C64: 0.683 | D64: 96 | E64: 100 | F64: 10.02 | G64: 100 | H64: 5
A65: BOMU/1-43 | B65: 940 | C65: 0.65 | D65: 95 | E65: 100 | F65: 2.067 | G65: 2000
A66: BOMU/1-43A | B66: 940 | C66: 0.65 | D66: 95 | E66: 100 | F66: 2.067 | G66: 2000 | H66: 0.75
A67: BOMU/CP-11 | B67: 520 | C67: 0.722 | D67: 78 | E67: 100 | F67: 4.026 | G67: 2000 | H67: 2.5
A68: BONN/1-12 | B68: 180 | C68: 0.7 | D68: 94 | E68: 100 | F68: 6.065 | G68: 500 | H68: 2.5
A69: BONN/1-45 | B69: 920 | C69: 0.7 | D69: 106 | E69: 100 | F69: 4.026 | G69: 400 | H69: 3
A70: BONN/1-M61 | B70: 147 | C70: 0.65 | D70: 84 | E70: 100 | F70: 6.065 | G70: 1500 | H70: 0.5
A71: BONN/1-M62 | B71: 147 | C71: 0.65 | D71: 84 | E71: 100 | F71: 6.065 | G71: 1500 | H71: 0.5
A72: BONN/1-M71 | B72: 39 | C72: 0.65 | D72: 103 | E72: 100 | F72: 6.065 | G72: 1500 | H72: 0.5
A73: BONN/1-M72 | B73: 39 | C73: 0.65 | D73: 103 | E73: 100 | F73: 6.065 | G73: 1500 | H73: 0.5
A74: BONN/1-T1 | B74: 147 | C74: 0.65 | D74: 84 | E74: 100 | F74: 6.065 | G74: 1500 | H74: 0.5
A75: BONNY/L-89
A76: BONNY/L-99
A77: BONNY/M-89
A78: BONNY/M-99
A79: CAWC/2-M6 | B79: 147 | C79: 0.65 | D79: 84 | E79: 100 | F79: 6.065 | G79: 1500 | H79: 0.5
A80: CAWC/2-M7 | B80: 39 | C80: 0.65 | D80: 103 | E80: 100 | F80: 6.065 | G80: 1500 | H80: 0.5
A81: CAWC/2-T1 | B81: 147 | C81: 0.65 | D81: 84 | E81: 100 | F81: 6.065 | G81: 1500 | H81: 0.5
A82: CAWC/3-M5 | B82: 147 | C82: 0.65 | D82: 84 | E82: 100 | F82: 6.065 | G82: 1500 | H82: 0.5
A83: CAWC/3-M6 | B83: 147 | C83: 0.65 | D83: 84 | E83: 100 | F83: 6.065 | G83: 1500 | H83: 0.5
A84: CAWC/3-M7 | B84: 39 | C84: 0.65 | D84: 103 | E84: 100 | F84: 6.065 | G84: 1500 | H84: 0.5
A85: CAWC/3-T1 | B85: 147 | C85: 0.65 | D85: 84 | E85: 100 | F85: 6.065 | G85: 1500 | H85: 0.5
A86: DBUC/1-M6 | B86: 130 | C86: 0.65 | D86: 84 | E86: 100 | F86: 6.065 | G86: 500 | H86: 0.5
A87: DBUC/1-M7 | B87: 41 | C87: 0.65 | D87: 103 | E87: 100 | F87: 6.065 | G87: 500 | H87: 0.5
A88: DBUC/1-M71 | B88: 41 | C88: 0.65 | D88: 103 | E88: 100 | F88: 6.065 | G88: 500 | H88: 0.5
A89: DBUC/1-T1 | B89: 103 | C89: 0.65 | D89: 84 | E89: 100 | F89: 6.065 | G89: 500 | H89: 0.5
A90: EBUB/1-22 | B90: 180 | C90: 0.683 | D90: 85 | E90: 100 | F90: 6.065 | G90: 400 | H90: 3.25
A91: EBUB/HP-80
A92: EBUB/LP-80
A93: EGBM/1-M6 | B93: 147 | C93: 0.64 | D93: 84 | E93: 100 | F93: 6.065 | G93: 400 | H93: 0.5
A94: EGBM/1-M7 | B94: 39 | C94: 0.77 | D94: 103 | E94: 100 | F94: 6.065 | G94: 500 | H94: 0.5
A95: EGBM/1-T1 | B95: 147 | C95: 0.65 | D95: 84 | E95: 100 | F95: 6.065 | G95: 1500 | H95: 0.5
A96: EGBW/1-M6 | B96: 147 | C96: 0.65 | D96: 84 | E96: 100 | F96: 6.065 | G96: 1500 | H96: 0.5
A97: EGBW/1-M7 | B97: 39 | C97: 0.65 | D97: 103 | E97: 100 | F97: 6.065 | G97: 1500 | H97: 0.5
A98: EGBW/1-T1 | B98: 147 | C98: 0.65 | D98: 84 | E98: 100 | F98: 6.065 | G98: 1500 | H98: 0.5
A99: EKUL/1-M6 | B99: 147 | C99: 0.65 | D99: 84 | E99: 100 | F99: 6.065 | G99: 1500 | H99: 0.5
A100: EKUL/1-M7 | B100: 87 | C100: 0.65 | D100: 103 | E100: 100 | F100: 6.065 | G100: 1500 | H100: 0.5
A101: EKUL/1-T1 | B101: 147 | C101: 0.65 | D101: 84 | E101: 100 | F101: 6.065 | G101: 1500 | H101: 0.5
A102: EKUL/2-M61 | B102: 147 | C102: 0.65 | D102: 84 | E102: 100 | F102: 6.065 | G102: 1500 | H102: 0.5
A103: EKUL/2-M62 | B103: 147 | C103: 0.65 | D103: 84 | E103: 100 | F103: 6.065 | G103: 1500 | H103: 0.5
A104: EKUL/2-M71 | B104: 84 | C104: 0.65 | D104: 103 | E104: 100 | F104: 6.065 | G104: 1500 | H104: 0.5
A105: EKUL/2-M72 | B105: 84 | C105: 0.65 | D105: 103 | E105: 100 | F105: 6.065 | G105: 1500 | H105: 0.5
A106: EKUL/2-T1 | B106: 147 | C106: 0.65 | D106: 84 | E106: 100 | F106: 6.065 | G106: 1500 | H106: 0.5
A107: EKUL/2-T2 | B107: 147 | C107: 0.65 | D107: 84 | E107: 100 | F107: 6.065 | G107: 1500 | H107: 0.5
A108: ELF/INJ-01
A109: ETEL/1-M61 | B109: 147 | C109: 0.67 | D109: 84 | E109: 250 | F109: 6.065 | G109: 500 | H109: 0.5
A110: ETEL/1-M62 | B110: 147 | C110: 0.65 | D110: 84 | E110: 250 | F110: 6.065 | G110: 500 | H110: 0.5
A111: ETEL/1-M71 | B111: 39 | C111: 0.67 | D111: 103 | E111: 200 | F111: 6.065 | G111: 400 | H111: 0.5
A112: ETEL/1-M72 | B112: 39 | C112: 0.7 | D112: 103 | E112: 200 | F112: 6.065 | G112: 500 | H112: 0.5
A113: ETEL/1-T1 | B113: 147 | C113: 0.65 | D113: 84 | E113: 100 | F113: 6.065 | G113: 1500 | H113: 0.5
A114: GULF/INJ-1
A115: IMOR/1-06 | B115: 180 | C115: 0.675 | D115: 87 | E115: 100 | F115: 6.065 | G115: 400 | H115: 4
A116: IMOR/1-06A
A117: IMOR/1-07 | B117: 45 | C117: 0.648 | D117: 87 | E117: 250 | F117: 6.065 | G117: 100 | H117: 2.25
A118: IMOR/1-07A | B118: 45 | C118: 0.683 | D118: 87 | E118: 250 | F118: 6.065 | G118: 100 | H118: 2.25
A119: IMOR/1-07B | B119: 45 | C119: 0.683 | D119: 91 | E119: 100 | F119: 6.065 | G119: 400 | H119: 1.75
A120: IMOR/1-07C
A121: IMOR/1-08A
A122: IMOR/1-27 | B122: 180 | C122: 0.707 | D122: 90 | E122: 100 | F122: 6.065 | G122: 400 | H122: 3.75
A123: IMOR/1-28 | B123: 68 | C123: 0.703 | D123: 86 | E123: 100 | F123: 3.068 | G123: 100 | H123: 1.25
A124: IMOR/1-28A | B124: 68 | C124: 0.703 | D124: 86 | E124: 100 | F124: 3.068 | G124: 100 | H124: 1.25
A125: IMOR/1-29 | B125: 63 | C125: 0.703 | D125: 77 | E125: 200 | F125: 2.067 | G125: 100 | H125: 1
A126: IMOR/1-30 | B126: 68 | C126: 0.703 | D126: 78 | E126: 100 | F126: 3.068 | G126: 100 | H126: 1.5
A127: IMOR/1-31 | B127: 68 | C127: 0.703 | D127: 78 | E127: 100 | F127: 6.065 | G127: 100 | H127: 1.5
A128: IMOR/1-32 | B128: 66 | C128: 0.703 | D128: 78 | E128: 100 | F128: 3.068 | G128: 100 | H128: 1.5
A129: IMOR/1-33A | B129: 68 | C129: 0.703 | D129: 86 | E129: 100 | F129: 7.981 | G129: 200 | H129: 2
A130: IMOR/1-33B | B130: 25 | C130: 0.703 | D130: 42 | E130: 100 | F130: 15 | G130: 150 | H130: 1.5
A131: IMOR/1-37 | B131: 180 | C131: 0.675 | D131: 90 | E131: 100 | F131: 7.981 | G131: 1500 | H131: 4.75
A132: IMOR/1-37A | B132: 180 | C132: 0.683 | D132: 90 | E132: 100 | F132: 10.02 | G132: 1500
A133: IMOR/1-38 | B133: 45 | C133: 0.648 | D133: 85 | E133: 100 | F133: 11.938 | G133: 400 | H133: 7.25
A134: IMOR/1-38A | B134: 45 | C134: 0.683 | D134: 85 | E134: 100 | F134: 10.02 | G134: 400
A135: IMOR/1-M6 | B135: 147 | C135: 0.66 | D135: 84 | E135: 100 | F135: 6.065 | G135: 400 | H135: 0.5
A136: IMOR/1-M71 | B136: 39 | C136: 0.66 | D136: 103 | E136: 100 | F136: 6.065 | G136: 400 | H136: 0.5
A137: IMOR/1-M72 | B137: 39 | C137: 0.63 | D137: 103 | E137: 250 | F137: 6.065 | G137: 100 | H137: 0.5
A138: IMOR/1-M73 | B138: 39 | C138: 0.73 | D138: 103 | E138: 250 | F138: 6.065 | G138: 100 | H138: 0.5
A139: IMOR/1-T1 | B139: 147 | C139: 0.65 | D139: 84 | E139: 100 | F139: 6.065 | G139: 1500 | H139: 0.5
A140: IMOR/2-M6 | B140: 174 | C140: 0.6 | D140: 84 | E140: 100 | F140: 6.065 | G140: 1200 | H140: 0.5
A141: IMOR/2-M7 | B141: 39 | C141: 0.61 | D141: 103 | E141: 100 | F141: 6.065 | G141: 1200 | H141: 0.5
A142: IMOR/2-T1 | B142: 174 | C142: 0.65 | D142: 84 | E142: 100 | F142: 6.065 | G142: 1500 | H142: 0.5
A143: IMOR/3-M6 | B143: 174 | C143: 0.65 | D143: 84 | E143: 100 | F143: 6.065 | G143: 300 | H143: 0.5
A144: IMOR/3-M7 | B144: 39 | C144: 0.69 | D144: 103 | E144: 100 | F144: 6.065 | G144: 200 | H144: 0.5
A145: IMOR/3-T1 | B145: 174 | C145: 0.65 | D145: 84 | E145: 100 | F145: 6.065 | G145: 1500 | H145: 0.5
A146: IMOR/C-43A | B146: 940 | C146: 0.683 | D146: 86 | E146: 100 | F146: 2.067 | G146: 1300 | H146: 0.75
A147: IMOR/CP-42 | B147: 940 | C147: 0.6615 | D147: 86 | E147: 100 | F147: 2.067 | G147: 1300
A148: IMOR/CP-43 | B148: 940 | C148: 0.6615 | D148: 86 | E148: 100 | F148: 3.826 | G148: 1500
A149: ISIM/1-M6 | B149: 147 | C149: 0.68 | D149: 84 | E149: 100 | F149: 6.065 | G149: 300 | H149: 0.5
A150: ISIM/1-M7 | B150: 39 | C150: 0.66 | D150: 103 | E150: 100 | F150: 6.065 | G150: 200 | H150: 0.5
A151: ISIM/1-T1 | B151: 147 | C151: 0.65 | D151: 84 | E151: 100 | F151: 6.065 | G151: 1500 | H151: 0.5
A152: KAUE/1-43 | B152: 940 | C152: 0.65 | D152: 95 | E152: 100 | F152: 2.067 | G152: 2000
A153: KAUE/1-43A | B153: 940 | C153: 0.65 | D153: 95 | E153: 100 | F153: 2.067 | G153: 2000 | H153: 0.75
A154: KOCR/1-25 | B154: 570 | C154: 0.628 | D154: 64 | E154: 100 | F154: 6.065 | G154: 2538 | H154: 2
A155: KOCR/1-44
A156: KOCR/1-44A
A157: KOCR/1-44B | B157: 870 | C157: 0.628 | D157: 80 | E157: 100 | F157: 2.067 | G157: 1500 | H157: 1.375
A158: KOCR/1-44C | B158: 870 | C158: 0.628 | D158: 80 | E158: 100 | F158: 2.067 | G158: 1500 | H158: 1.375
A159: KOCR/1-44D
A160: KOCR/1-M4 | B160: 39 | C160: 0.64 | D160: 103 | E160: 100 | F160: 6.065 | G160: 1500 | H160: 0.5
A161: KOCR/1-M5 | B161: 39 | C161: 0.64 | D161: 103 | E161: 100 | F161: 6.065 | G161: 1500 | H161: 0.5
A162: KOCR/1-M61 | B162: 147 | C162: 0.65 | D162: 84 | E162: 100 | F162: 6.065 | G162: 500 | H162: 0.5
A163: KOCR/1-M62 | B163: 147 | C163: 0.73 | D163: 84 | E163: 100 | F163: 6.065 | G163: 500 | H163: 0.5
A164: KOCR/1-M71 | B164: 39 | C164: 0.71 | D164: 103 | E164: 100 | F164: 6.065 | G164: 500 | H164: 0.5
A165: KOCR/1-M72 | B165: 39 | C165: 0.73 | D165: 103 | E165: 100 | F165: 6.065 | G165: 500 | H165: 0.5
A166: KRAK/1-M6 | B166: 103 | C166: 0.65 | D166: 80 | E166: 100 | F166: 6.065 | G166: 900 | H166: 0.5
A167: KRAK/1-M7 | B167: 85 | C167: 0.65 | D167: 36 | E167: 100 | F167: 6.065 | G167: 200 | H167: 0.5
A168: KRAK/1-T1 | B168: 103 | C168: 0.65 | D168: 80 | E168: 100 | F168: 6.065 | G168: 900 | H168: 0.5
A169: NEMC/1-M61 | B169: 147 | C169: 0.65 | D169: 84 | E169: 100 | F169: 6.065 | G169: 1500 | H169: 0.5
A170: NEMC/1-M62 | B170: 147 | C170: 0.65 | D170: 84 | E170: 100 | F170: 6.065 | G170: 1500 | H170: 0.5
A171: NEMC/1-M71 | B171: 39 | C171: 0.65 | D171: 103 | E171: 100 | F171: 6.065 | G171: 1500 | H171: 0.5
A172: NEMC/1-M72 | B172: 39 | C172: 0.65 | D172: 103 | E172: 100 | F172: 6.065 | G172: 1500 | H172: 0.5
A173: NEMC/1-T1 | B173: 147 | C173: 0.65 | D173: 84 | E173: 100 | F173: 6.065 | G173: 1500 | H173: 0.5
A174: NEMC/1-T2 | B174: 147 | C174: 0.65 | D174: 84 | E174: 100 | F174: 6.065 | G174: 1500 | H174: 0.5
A175: NEMC/2-M61 | B175: 147 | C175: 0.65 | D175: 84 | E175: 100 | F175: 6.065 | G175: 1500 | H175: 0.5
A176: NEMC/2-M62 | B176: 147 | C176: 0.65 | D176: 84 | E176: 100 | F176: 6.065 | G176: 1500 | H176: 0.5
A177: NEMC/2-M71 | B177: 39 | C177: 0.65 | D177: 103 | E177: 100 | F177: 6.065 | G177: 1500 | H177: 0.5
A178: NEMC/2-M72 | B178: 39 | C178: 0.65 | D178: 103 | E178: 100 | F178: 6.065 | G178: 1500 | H178: 0.5
A179: NEMC/2-T1 | B179: 147 | C179: 0.65 | D179: 84 | E179: 100 | F179: 6.065 | G179: 1500 | H179: 0.5
A180: NEMC/2-T2 | B180: 147 | C180: 0.65 | D180: 84 | E180: 100 | F180: 6.065 | G180: 1500 | H180: 0.5
A181: NEMC/3-M6 | B181: 147 | C181: 0.65 | D181: 84 | E181: 100 | F181: 6.065 | G181: 1500 | H181: 0.5
A182: NEMC/3-M7 | B182: 39 | C182: 0.65 | D182: 103 | E182: 100 | F182: 6.065 | G182: 1500 | H182: 0.5
A183: NEMC/3-T1 | B183: 147 | C183: 0.65 | D183: 84 | E183: 100 | F183: 6.065 | G183: 1500 | H183: 0.5
A184: NEMC/4-M6 | B184: 147 | C184: 0.65 | D184: 84 | E184: 100 | F184: 6.065 | G184: 1500 | H184: 0.5
A185: NEMC/4-M7 | B185: 39 | C185: 0.65 | D185: 103 | E185: 100 | F185: 6.065 | G185: 1500 | H185: 0.5
A186: NEMC/4-T1 | B186: 147 | C186: 0.65 | D186: 84 | E186: 100 | F186: 6.065 | G186: 1500 | H186: 0.5
A187: NKAL/1-M5 | B187: 147 | C187: 0.65 | D187: 84 | E187: 100 | F187: 6.065 | G187: 1500 | H187: 0.5
A188: NKAL/1-M6 | B188: 147 | C188: 0.74 | D188: 84 | E188: 100 | F188: 6.065 | G188: 1200 | H188: 0.5
A189: NKAL/1-M7 | B189: 39 | C189: 0.74 | D189: 103 | E189: 100 | F189: 6.065 | G189: 1500 | H189: 0.5
A190: NKAL/1-T1 | B190: 147 | C190: 0.65 | D190: 84 | E190: 100 | F190: 6.065 | G190: 1500 | H190: 0.5
A191: OBEL/1-M6 | B191: 147 | C191: 0.58 | D191: 84 | E191: 100 | F191: 6.065 | G191: 1200 | H191: 0.5
A192: OBEL/1-M7 | B192: 39 | C192: 0.59 | D192: 103 | E192: 100 | F192: 6.065 | G192: 1200 | H192: 0.5
A193: OBEL/1-T1 | B193: 147 | C193: 0.65 | D193: 84 | E193: 100 | F193: 6.065 | G193: 1500 | H193: 0.5
A194: OBGN/1-37 | B194: 180 | C194: 0.574 | D194: 90 | E194: 100 | F194: 7.981 | G194: 1500 | H194: 4.75
A195: OBGN/1-38 | B195: 45 | C195: 0.581 | D195: 90 | E195: 100 | F195: 11.938 | G195: 400 | H195: 7.25
A196: OBGN/1-45 | B196: 940 | C196: 0.561 | D196: 86 | E196: 200 | F196: 2.067 | G196: 2000
A197: OBGN/1-45A | B197: 940 | C197: 0.65 | D197: 86 | E197: 200 | F197: 2.067 | G197: 2000 | H197: 0.75
A198: OBGN/1-46 | B198: 940 | C198: 0.561 | D198: 86 | E198: 200 | F198: 2.067 | G198: 2000
A199: OBGN/1-46A | B199: 940 | C199: 0.65 | D199: 86 | E199: 200 | F199: 2.067 | G199: 2000 | H199: 0.75
A200: OBGN/1-GL3 | B200: 840 | C200: 0.65 | D200: 84 | E200: 100 | F200: 2.067 | G200: 1200 | H200: 0.375
... 42 more rows
